Workbook

Sheet Bienvenue
B2: Nous vous souhaitons la bienvenue sur la Déclaration détaillée
B4: Pour utiliser convenablement le fichier et bénéficier de ses fonctionnalités, il est nécessaire d'activer les macros.
B6: Mes macros sont-elles bien activées ?
B10: Oui | F10: Non / Je ne sais pas. | K10: =HYPERLINK( "#" & IF(TEXT(INFO("VERSION"),0)="14","Macro_2010",IF(INFO("VERSION")="12.0","Macro_2007","Macro_2003")),"Cheminement pour activer les macros") -> Cheminement pour activer les macros
F11: J'active mes macros en suivant la procédure
B39: Activer les macros sous Excel 2003 et versions antérieures :
D41: 1 - Dans le menu "Outils", puis "Macros", cliquez sur "Sécurité…"
D56: 2 - Cochez la dernière case "Niveau de sécurité faible" puis cliquez sur "OK"
D73: 3 - Quitter Excel et ouvrir à nouveau le fichier
B89: Activer les macros sous Excel 2007 :
D92: 1 - Cliquer sur le bouton Office situé en haut à gauche de votre écran
D98: 2 - Cliquer sur "Options Excel"
D116: 3 - Cliquer sur "Centre de gestion de la confidentialité" situé dans le menu de gauche (avant le dernier item)
D133: 4 - Cliquer sur le bouton "Paramètres du Centre de gestion de la confidentialité…"
D150: 5 - Cliquer sur "Paramètres des macros" dans le menu de gauche
D167: 6 - Cocher "Activer toutes les macros (non recommandé ; risque d'exécution de code potentiellement dangereux)" puis cliquer sur "OK"
D184: 7 - Sur la fenêtre "Option Excel" sur laquelle vous êtes revenu, cliquer sur "OK"
D202: 8 - Quitter Excel et ouvrir à nouveau le fichier
B218: Activer les macros sous Excel 2010 :
D220: 1 - Cliquer sur l'onglet "Fichier" (1) puis sur "Options" (2)
D239: 2 - Cliquer sur "Centre de gestion de la confidentialité" (1), puis sur "Paramètres du Centre de gestion de la confidentialité..."
D257: 3 - Cliquer sur "Paramètres des macros" (1), cocher "Activer toutes les macros (non recommandé ; risque d'exécution de code potentiellement dangereux)" (2)
D258: puis cliquer sur "OK" (3)
D285: 4 - Sur la fenêtre "Option Excel" sur laquelle vous êtes revenu, cliquer sur "OK"
D314: 5 - Quitter Excel et ouvrir à nouveau le fichier

Sheet Sommaire
F1: Contactez nos conseillers au 0 810 00 86 90 | J1: ="Déclaration "&WWANNEE -> Déclaration 2015
F2: Sommaire
K3: * Champ obligatoire à remplir
C4: N° d'adhérent * | D4: A2100138
C6: Nom d'adhérent * | D6: SA. DOMAINE GROS A.F.
P7: Premiere Accès onglet Déclaration : | Q7: 0
A8: Remplir votre déclaration | P8: WbkLivraison | Q8: 1
A10: 1 - | C10: Remplir votre déclaration | Q10: FALSE
J11: ="Accéder à la Déclaration "&WWANNEE -> Accéder à la Déclaration 2015 | K11: 2015
A12: Vous avez terminé de remplir votre déclaration ?
A13: 2 - | C13: Renseigner ou vérifier vos informations sur l'entreprise
A15: 3 - | C15: Contrôler et certifier la conformité des données renseignées
D17: Nom du signataire habilité * :
D19: Prénom du signataire habilité * :
D21: Fonction du signataire * :
C23: Afin de vous assurez que toutes les informations saisies sont conformes au format attendu, merci de lancer un contrôle
C27: Pensez à nous transmettre votre rapport de procédures convenues
C29: Pensez à nous transmettre votre attestation de papier/carton recyclé
C31: Pensez à nous transmettre vos justificatifs pour vos actions de sensibilisation
C33: Pensez à déclarer vos actions de réduction à la source sur le site dédié
C35: ="Cocher la case afin d'attester l'exactitude des informations que vous vous apprêtez à communiquer à " & Entite -> Cocher la case afin d'attester l'exactitude des informations que vous vous apprêtez à communiquer à Adelphe
C36: Je certifie l'exactitude des données renseignées dans la présente déclaration
A38: 4 - | C38: Convertir votre déclaration Excel au format d'envoi pour réduire la durée de transmission
B40: Emplacement du fichier converti :
A43: 5 - | C43: ="Se connecter au site Adelphe-Déclaration pour envoyer votre déclaration "&WWANNEE -> Se connecter au site Adelphe-Déclaration pour envoyer votre déclaration 2015 | I43: https://www.adelphe-declaration.com
A44: =Entite & " vous remercie" -> Adelphe vous remercie

Sheet Formulaire
P1: =Sommaire!J1 -> Déclaration 2015
G5: Informations sur l'entreprise
P6: * Champ obligatoire à remplir
D7: Informations générales
C9: Nom de l'entreprise : | D9: =IF(Sommaire!$D$6="","",Sommaire!$D$6) -> 
C11: N° de SIRET * : | H11: Indiquez votre N° de Siret à 14 chiffres si l'entreprise adhérente est immatriculée en France
C13: Chiffre d'Affaires en HT (€) : | H13: ="Indiquez votre chiffre d’affaires concerné pour l’année "&WWANNEE -> Indiquez votre chiffre d’affaires concerné pour l’année 2015
C15: Nombre d'UVC * : | D15: 4113 | H15: ="Indiquez le nombre d'Unités de Vente Consommateurs mises en marché en "&WWANNEE -> Indiquez le nombre d'Unités de Vente Consommateurs mises en marché en 2015
D18: Identité du déclarant
C20: Nom * : | D20: PARENT-GROS
C22: Prénom * : | D22: ANNE-FRANCOISE
C24: Fonction * : | D24: PDG
C26: Adresse : | D26: n° : | E26: 5 | G26: GRANDE RUE LA GARELLE
C28: Code Postal : | D28: 21630 | I28: Boîte Postale :
C30: Ville : | D30: POMMARD
C32: Pays : | D32: FR
C34: Téléphone : | D34: 0380226185
C36: E-mail * : | D36: af-gros@wanadoo.fr
G39: Listes des entreprises couvertes par le contrat
A40: A remplir si votre contrat couvre plusieurs entreprises
AA41: CONTRÖLES
A42: Entreprise | D42: Adresse | I42: Code postal | K42: Ville | N42: Pays | O42: SIRET | P42: Téléphone | AA42: EntreprisePaysSIRET
A67: Pour ajouter des lignes au tableau, faire un clic droit sur le n° de cette ligne, à gauche de la fenêtre et sélectionner l'item Insertion
G69: Listes des marques couvertes par le contrat
A70: =" Lister l'ensemble des noms commerciaux des produits pour lesquels vous contribuez à " & Entite -> Lister l'ensemble des noms commerciaux des produits pour lesquels vous contribuez à Adelphe
A72: Nom de la marque | I72: Nom de la marque
A97: RepereFinNomMarque
A101: Liste entreprises, ligne format par défaut (fusion cellules)
A107: Liste marques, ligne format par défaut (fusion cellules)

Sheet Declaration
B1: ="Déclaration détaillée "&WWANNEE -> Déclaration détaillée 2015 | AU1: AU | AV1: AV | AW1: AW | AX1: AX | AY1: AY | AZ1: AZ
B2: Calculer le montant de votre déclaration et contrôler vos données | C2: Type d'emballage | I2: Composition par matériau | T2: Malus | W2: Bonus | Z2: Emballages mis en marché | AF2: ="Total de votre déclaration "&WWANNEE -> Total de votre déclaration 2015 | AI2: =IF(OR(SUM($AW10:$AW10)<>0,SUM($AZ10:$AZ10)<>0),"-",SUM($AI10:$AI10)) -> 0 | AK2: 1 | AT2: 46 | AU2: 47 | AV2: 48 | AW2: 49 | AX2: 50 | AY2: 51 | AZ2: 52 | BA2: MAJORITAIRE | BC2: NON MAJORITAIRE
A3: N° UVC ou référence produit (Maximum 20 caractères) | B3: Libellé (Maximum 50 caractères et doit contenir au moins une lettre) | C3: Code produit | D3: Libellé code produit | E3: Code emballage | F3: Libellé code emballage | G3: Que contient l'emballage ? | I3: Code du 1er matériau | J3: Libellé du 1er matériau | K3: Poids unitaire (en g) du 1er matériau ou poids total de l'unité d'emballage si un matériau est majoritaire à + 80% | L3: Code du 2nd matériau | M3: Libellé du 2nd matériau | N3: Poids unitaire (en g) du 2nd matériau | O3: Code du 3ème matériau | P3: Libellé du 3ème matériau | Q3: Poids unitaire (en g) du 3ème matériau et matériaux restants | R3: Poids total de l'unité d'emballage (en g) | S3: Votre emballage en papier-carton contient-il plus de 50% de fibres recyclées ? | T3: Votre emballage est-il perturbateur ? | U3: Votre emballage est-il non-valorisable ? | V3: Votre emballage est-il dans les consignes de tri mais sans filière de recyclage ? | W3: Votre emballage a-t-il fait l’objet d’une action de réduction à la source ? Si oui, laquelle ? | X3: Votre emballage a-t-il fait l'objet d'une action de sensibilisation ? Si oui, laquelle ? | Y3: % des volumes ménagers concernés par l'action de sensibilisation | Z3: Nombre d'emballages ménagers mis sur le marché | AA3: Nombre d'emballages non ménagers ayant le même conditionnement que les produits ménagers mis sur le marché français | AB3: Vos emballages non ménagers sont-ils des emballages de produits retournés, cassés ou périmés ? | AC3: Vos emballages non ménagers sont-ils des films/cartons de regroupement qui ont été laissés sur le point de vente (délotage) avant le passage en caisse ? | AD3: Vos emballages non ménagers sont-ils utilisés ou consommés par des professionnels et distribués dans des circuits mixtes ou réservés exclusivement aux professionnels (ex. : grossiste, cash & carry…) ? | AE3: Vos emballages non ménagers sont-ils consommés ou utilisés au sein d’un établissement de restauration collective ou traditionnelle ? | AF3: Contribution au poids (ct euro) | AG3: Contribution à l'emballage (ct euro) | AH3: Contribution unitaire totale (ct euro) | AI3: Contribution totale par ligne (euro) | AK3: Label control (logic) | AT3: Renversement des Résultats de Test | AU3: CNB _ NB_erreurs | AV3: CNB _ NB_erreurs | AW3: CNB _ NB_erreurs | AX3: CB _ NB_erreurs | AY3: CB _ NB_erreurs | AZ3: CB _ NB_erreurs | BA3: Contribution au poids Majoritaire | BB3: Contribution au poids Majoritaire (après décote) | BC3: Contribution au poids Non Majoritaire (après décote) - Matériau 1 | BD3: Contribution au poids Non Majoritaire (après décote) - Matériau 2 | BE3: Contribution au poids Non Majoritaire (après décote) - Matériau 3 | BF3: Ctu Après Malus | BG3: Ctu Après Réduction Source
A4: 1 | B4: Exemple : Vin blanc 2010 | C4: 023400 | D4: Vins | E4: 017 | F4: Bouteille | G4: 75 | H4: cl | I4: 50 | J4: Verre | K4: 436 | R4: 436 | S4: Non | T4: Non | U4: Non | V4: Non | W4: Réduction de poids | X4: On-Pack ITPV | Y4: 0.75 | Z4: 320000 | AA4: 75000 | AB4: Non | AC4: Non | AD4: Non | AE4: Oui | AT4: (CB & CNB) | AU4: 1 | AV4: Coloriage | AW4: 1 | AX4: 1 | AY4: 1 | AZ4: 1
A5: 1 | B5: Exemple : Vin blanc 2010 | C5: 023400 | D5: Vins | E5: B10 | F5: Bouchon | G5: 1 | H5: autre | I5: 60 | J5: Autres matériaux | K5: 4.5 | R5: 4.5 | S5: Non | T5: Non | U5: Non | V5: Non | X5: On-Pack ITPV | Y5: 0.75 | Z5: 320000 | AA5: 75000 | AB5: Non | AC5: Non | AD5: Non | AE5: Oui
A6: 1 | B6: Exemple : Vin blanc 2010 | C6: 023400 | D6: Vins | E6: 044 | F6: Etui souple | G6: 1 | H6: autre | I6: 30 | J6: Papier-carton - Autre que briques | K6: 85 | R6: 85 | S6: Non | T6: Non | U6: Non | V6: Non | X6: On-Pack ITPV | Y6: 0.75 | Z6: 320000 | AA6: 75000 | AB6: Non | AC6: Non | AD6: Non | AE6: Oui
A7: 2 | B7: Exemple : Comprimés x 20 | C7: 096731 | D7: Allergologie | E7: 012 | F7: Boîte | G7: 2 | H7: autre | I7: 30 | J7: Papier-carton - Autre que briques | K7: 4.87 | R7: 4.87 | S7: Non | T7: Non | U7: Non | V7: Non | Z7: 542000 | AA7: 300000 | AB7: Non | AC7: Non | AD7: Oui | AE7: Non
A8: 2 | B8: Exemple : Comprimés x 20 | C8: 096731 | D8: Allergologie | E8: 008 | F8: Blister à coque thermoformée, avec ou sans chevalet carton | G8: 10 | H8: autre | I8: 43 | J8: Plastique - Autres emballages plastique | K8: 3.429 | L8: 20 | M8: Aluminium | N8: 0.921 | R8: 5.271 | S8: Non | T8: Non | U8: Non | V8: Non | Z8: 1084000 | AA8: 600000 | AB8: Non | AC8: Non | AD8: Oui | AE8: Non | AU8: 1 | AW8: 1 | AX8: 1 | AY8: 1 | AZ8: 1
A9: Filtre | B9: Filtre | C9: Filtre | D9: Filtre | E9: Filtre | F9: Filtre | G9: Filtre | H9: Filtre | I9: Filtre | J9: Filtre | K9: Filtre | L9: Filtre | M9: Filtre | N9: Filtre | O9: Filtre | P9: Filtre | Q9: Filtre | R9: Filtre | S9: Filtre | T9: Filtre | U9: Filtre | V9: Filtre | W9: Filtre | X9: Filtre | Y9: Filtre | Z9: Filtre | AA9: Filtre | AB9: Filtre | AC9: Filtre | AD9: Filtre | AE9: Filtre | AF9: Filtre | AG9: Filtre | AH9: Filtre | AI9: Filtre | AK9: Filtre | AU9: 1 | AW9: 1 | AX9: 1 | AY9: 1 | AZ9: 1
A10: 1 | B10: vins 2014 | C10: 023400 | D10: =IF(ISBLANK(C10),"",IF(ISERROR(VLOOKUP(TEXT(C10,"000000"),Produits,2,FALSE)),IF(ISERROR(VLOOKUP("0"&C10,Produits,2,FALSE)),"N'appartient pas à la liste",VLOOKUP("0"&C10,Produits,2,FALSE)),VLOOKUP(TEXT(C10,"000000"),Produits,2,FALSE))) ->  | E10: 017 | F10: =IF(ISBLANK(E10),"",IF(ISERROR(VLOOKUP(TEXT(E10,"000"),Emballages,2,0)),IF(ISERROR(VLOOKUP("0"&E10,Emballages,2,FALSE)),"N'appartient pas à la liste",VLOOKUP("0"&E10,Emballages,2,FALSE)),VLOOKUP(TEXT(E10,"000"),Emballages,2,0))) ->  | G10: 75 | H10: cl | I10: 50 | J10: =IF(ISBLANK(I10),"",IF(ISERROR(VLOOKUP(I10,Bareme,2,FALSE)),"N'appartient pas à la liste",VLOOKUP(I10,Bareme,2,FALSE))) ->  | K10: 550 | M10: =IF(ISBLANK(L10),"",IF(ISERROR(VLOOKUP(L10,Bareme,2,FALSE)),"N'appartient pas à la liste",VLOOKUP(L10,Bareme,2,FALSE))) ->  | P10: =IF(ISBLANK(O10),"",IF(ISERROR(VLOOKUP(O10,Bareme,2,FALSE)),"N'appartient pas à la liste",VLOOKUP(O10,Bareme,2,FALSE))) ->  | R10: =IF(OR($K10<>"",$N10<>"",$Q10<>""),SUM($K10,$N10,$Q10),"") ->  | AK10: =IsLabelOk($B10) -> TRUE | AX10: 1
A11: 2 | B11: cartons | C11: 023400 | E11: 022 | G11: 6 | H11: autre | I11: 30 | K11: 240 | AK11: TRUE
A12: 3 | B12: cartons | C12: 023400 | E12: 022 | G12: 12 | H12: autre | I12: 30 | K12: 480 | AK12: TRUE
A13: 4 | B13: bouchons | C13: 023400 | E13: B10 | G13: 1 | H13: autre | I13: 60 | K13: 5 | AK13: TRUE
AK14: TRUE
AK15: TRUE
AK16: TRUE
AK17: TRUE
AK18: TRUE
AK19: TRUE
AK20: TRUE
AK21: TRUE
AK22: TRUE
AK23: TRUE
AK24: TRUE
AK25: TRUE
AK26: TRUE
AK27: TRUE
AK28: TRUE
AK29: TRUE
AK30: TRUE
AK31: TRUE
AK32: TRUE
AK33: TRUE
AK34: TRUE
AK35: TRUE
AK36: TRUE
AK37: TRUE
AK38: TRUE
AK39: TRUE
AK40: TRUE
AK41: TRUE
AK42: TRUE
AK43: TRUE
AK44: TRUE
AK45: TRUE
AK46: TRUE
AK47: TRUE
AK48: TRUE
AK49: TRUE
AK50: TRUE
AK51: TRUE
AK52: TRUE
AK53: TRUE
AK54: TRUE
AK55: TRUE
AK56: TRUE
AK57: TRUE
AK58: TRUE
AK59: TRUE
AK60: TRUE
AK61: TRUE
AK62: TRUE
AK63: TRUE
AK64: TRUE
AK65: TRUE
AK66: TRUE
AK67: TRUE
AK68: TRUE
AK69: TRUE
AK70: TRUE
AK71: TRUE
AK72: TRUE
AK73: TRUE
AK74: TRUE
AK75: TRUE
AK76: TRUE
AK77: TRUE
AK78: TRUE
AK79: TRUE
AK80: TRUE
AK81: TRUE
AK82: TRUE
AK83: TRUE
AK84: TRUE
AK85: TRUE
AK86: TRUE
AK87: TRUE
AK88: TRUE
AK89: TRUE
AK90: TRUE
AK91: TRUE
AK92: TRUE
AK93: TRUE
AK94: TRUE
AK95: TRUE
AK96: TRUE
AK97: TRUE
AK98: TRUE
AK99: TRUE
AK100: TRUE
AK101: TRUE
AK102: TRUE
AK103: TRUE
AK104: TRUE
AK105: TRUE
AK106: TRUE
AK107: TRUE
AK108: TRUE
AK109: TRUE
AK110: TRUE
AK111: TRUE
AK112: TRUE
AK113: TRUE
AK114: TRUE
AK115: TRUE
AK116: TRUE
AK117: TRUE
AK118: TRUE
AK119: TRUE

Sheet Nomenclature
C1: =Titre_Sommaire -> Déclaration 2015 | G1: =Titre_Sommaire -> Déclaration 2015 | L1: =Titre_Sommaire -> Déclaration 2015 | N1: AVERTISSEMENT : Les listes peuvent être complétées MAIS il ne faut pas NI laisser de ligne vide NI mettre une note/mémo sous les listes. | AP1: =COLUMN() -> 42
AO2: Colonne active dans la déclaration = > | AP2: 1
B3: n | C3: 28 | G3: 13 | J3: 12 | K3: 15
B4: Sélectionnez votre nomenclature : | F4: Sélectionnez votre nomenclature : | J4: Sélectionnez votre nomenclature : | AO4: Ligne active dans la déclaration = > | AP4: 10
A6: Rechercher :
A8: Code Produit | B8: Désignation Produit | E8: Code Emballage | F8: Désignation emballage | I8: Code Matériau | J8: Matériau | K8: Tarifs | N8: Bonus L2 | O8: Bonus L3 | Q8: ID emballage (bouteille) | R8: Détection bouteille | S8: Global | U8: ID emballage (bouchon) | V8: Détection bouchons | W8: Global | Y8: Probleme bouteille sans bouchon | AB8: Année | AC8: Bonus | AD8: Coef après bonus | AF8: Année FDD | AG8: Coef bonus utilisé | AI8: Colonne Déclaration Cell Active | AJ8: Ligne Déclaration Cell Active | AL8: Liste déroulante | AM8: Sélectionné | AO8: Liste Pays | AP8: Codes pays
A9: 010100 | B9: Biscottes et pains grillés | E9: 001 | F9: Aérosol | I9: 10 | J9: Acier | K9: 3.15 | N9: On-Pack ITPV | O9: Réduction de poids | Q9: 001 | R9: =IF(COUNTIF(Declaration!$E:$E,Q9)-COUNTIF(Declaration!$E$4:$E$8,Q9)<>0,1,0) -> 0 | S9: =SUM(R9:R30) -> 0 | U9: B10 | V9: =IF(COUNTIF(Declaration!$E:$E,U9)-COUNTIF(Declaration!$E$4:$E$8,U9)<>0,1,0) -> 0 | W9: =SUM(V9:V14) -> 0 | Y9: =IF(AND(S9=1,W9=0),1,0) -> 0 | AB9: 2012 | AC9: 0.02 | AD9: =1-AC9 -> 0.98 | AF9: =WWANNEE -> 2015 | AG9: =INDEX($AD$9:$AD$14,MATCH($AF$9,$AB$9:$AB$14,0)) -> 0.92 | AI9: 25 | AJ9: 1 | AL9: Produit | AM9: 1 | AO9: ALLEMAGNE | AP9: DE
A10: 010101 | B10: Produits similaires grillés | E10: 102 | F10: Ailettes | I10: 20 | J10: Aluminium | K10: 9.28 | N10: On-Pack personnalisé | O10: Réduction de volume | Q10: 003 | R10: =IF(COUNTIF(Declaration!$E:$E,Q10)-COUNTIF(Declaration!$E$4:$E$8,Q10)<>0,1,0) -> 0 | U10: B11 | V10: =IF(COUNTIF(Declaration!$E:$E,U10)-COUNTIF(Declaration!$E$4:$E$8,U10)<>0,1,0) -> 0 | AB10: =AB9+1 -> 2013 | AC10: 0.02 | AD10: =1-AC10 -> 0.98 | AL10: Emballage | AO10: AUTRICHE | AP10: AT
A11: 010201 | B11: Biscuits et snacks salés | E11: 002 | F11: Ampoule | I11: 30 | J11: Papier-carton - Autre que briques | K11: 16.33 | N11: In-Pack ITPV | O11: Recharge | Q11: 004 | R11: =IF(COUNTIF(Declaration!$E:$E,Q11)-COUNTIF(Declaration!$E$4:$E$8,Q11)<>0,1,0) -> 0 | U11: B14 | V11: =IF(COUNTIF(Declaration!$E:$E,U11)-COUNTIF(Declaration!$E$4:$E$8,U11)<>0,1,0) -> 0 | AB11: =AB10+1 -> 2014 | AC11: 0.08 | AD11: =1-AC11 -> 0.92 | AL11: Matériau | AO11: BELGIQUE | AP11: BE
A12: 010202 | B12: Biscuits sucrés | E12: 003 | F12: Baril, carrier pack | I12: 31 | J12: Papier-carton - Briques | K12: 17.04 | N12: In-Pack personnalisé | Q12: 005 | R12: =IF(COUNTIF(Declaration!$E:$E,Q12)-COUNTIF(Declaration!$E$4:$E$8,Q12)<>0,1,0) -> 0 | U12: B17 | V12: =IF(COUNTIF(Declaration!$E:$E,U12)-COUNTIF(Declaration!$E$4:$E$8,U12)<>0,1,0) -> 0 | AB12: 2015 | AC12: 0.08 | AD12: 0.92 | AO12: CANADA | AP12: CA
A13: 010203 | B13: Pains d’épices, pâtisseries, viennoiseries de conservation | E13: 004 | F13: Barquette | I13: 45 | J13: Plastique - Bouteilles et flacons en PET clair | K13: 24.22 | N13: Notice ITPV | Q13: 006 | R13: =IF(COUNTIF(Declaration!$E:$E,Q13)-COUNTIF(Declaration!$E$4:$E$8,Q13)<>0,1,0) -> 0 | U13: B18 | V13: =IF(COUNTIF(Declaration!$E:$E,U13)-COUNTIF(Declaration!$E$4:$E$8,U13)<>0,1,0) -> 0 | AO13: CHINE | AP13: CN
A14: 010301 | B14: Café, chicorée, malt en grain | E14: 005 | F14: Barquette préformée | I14: 44 | J14: Plastique - Autres bouteilles et flacons | K14: 24.47 | N14: Notice personnalisée | Q14: 008 | R14: =IF(COUNTIF(Declaration!$E:$E,Q14)-COUNTIF(Declaration!$E$4:$E$8,Q14)<>0,1,0) -> 0 | U14: B19 | V14: =IF(COUNTIF(Declaration!$E:$E,U14)-COUNTIF(Declaration!$E$4:$E$8,U14)<>0,1,0) -> 0 | AO14: ESPAGNE | AP14: ES
A15: 010302 | B15: Café, chicorée, malt moulus | E15: 006 | F15: Bidon | I15: 43 | J15: Plastique - Autres emballages plastique | K15: 28.06 | N15: Off-Pack | Q15: 009 | R15: =IF(COUNTIF(Declaration!$E:$E,Q15)-COUNTIF(Declaration!$E$4:$E$8,Q15)<>0,1,0) -> 0 | AO15: FINLANDE | AP15: FI
A16: 010303 | B16: Café, chicorée, malt solubles | E16: 007 | F16: Blague à tabac | I16: 50 | J16: Verre | K16: 1.21 | AO16: FRANCE | AP16: FR
A17: 010401 | B17: Chocolat poudre | E17: 008 | F17: Blister à coque thermoformée, avec ou sans chevalet carton | I17: 59 | J17: Bois | K17: 23.29 | AO17: GRECE | AP17: GR
A18: 010402 | B18: Petits déjeuners et boissons instantanées | E18: 009 | F18: Blister à coque thermoformée, avec support carton | I18: 60 | J18: Autres matériaux | K18: 23.29 | AO18: ITALIE | AP18: IT
A19: 010403 | B19: Céréales prêtes à consommer ou à préparer | E19: 010 | F19: Bobine, rouleau, mandrin | I19: 69 | J19: Textile | K19: 23.29 | Q19: 011 | R19: =IF(COUNTIF(Declaration!$E:$E,Q19)-COUNTIF(Declaration!$E$4:$E$8,Q19)<>0,1,0) -> 0 | AO19: JAPON | AP19: JP
A20: 010404 | B20: Pâtes à tartiner | E20: 011 | F20: Bocal | N20: 012 | O20: =IF(COUNTIF(Declaration!$E:$E,N20)-COUNTIF(Declaration!$E$4:$E$8,N20)<>0,1,0) -> 0 | AO20: LUXEMBOURG | AP20: LU
A21: 010501 | B21: Thés et infusions en feuilles | E21: 012 | F21: Boîte | Q21: 017 | R21: =IF(COUNTIF(Declaration!$E:$E,Q21)-COUNTIF(Declaration!$E$4:$E$8,Q21)<>0,1,0) -> 0 | AO21: PAYS-BAS | AP21: NL
A22: 010502 | B22: Thés et infusions solubles | E22: 013 | F22: Boîte alvéolaire | Q22: 019 | R22: =IF(COUNTIF(Declaration!$E:$E,Q22)-COUNTIF(Declaration!$E$4:$E$8,Q22)<>0,1,0) -> 0 | AO22: POLOGNE | AP22: PL
A23: 010601 | B23: Chocolat en tablettes | E23: 014 | F23: Boîtier | Q23: 032 | R23: =IF(COUNTIF(Declaration!$E:$E,Q23)-COUNTIF(Declaration!$E$4:$E$8,Q23)<>0,1,0) -> 0 | AO23: PORTUGAL | AP23: PT
A24: 010602 | B24: Confiseries de chocolat | E24: 015 | F24: Bol | Q24: 054 | R24: =IF(COUNTIF(Declaration!$E:$E,Q24)-COUNTIF(Declaration!$E$4:$E$8,Q24)<>0,1,0) -> 0 | AO24: TCHEQUE, REPUBLIQUE | AP24: CZ
A25: 010603 | B25: Barres de chocolat | E25: 016 | F25: Bonbonne | Q25: 055 | R25: =IF(COUNTIF(Declaration!$E:$E,Q25)-COUNTIF(Declaration!$E$4:$E$8,Q25)<>0,1,0) -> 0 | AO25: ROYAUME-UNI | AP25: GB
A26: 010701 | B26: Bonbons et gélifiés | E26: B10 | F26: Bouchon | Q26: 069 | R26: =IF(COUNTIF(Declaration!$E:$E,Q26)-COUNTIF(Declaration!$E$4:$E$8,Q26)<>0,1,0) -> 0 | AO26: SUEDE | AP26: SE
A27: 010702 | B27: Dragées et pastilles | E27: 017 | F27: Bouteille | Q27: 078 | R27: =IF(COUNTIF(Declaration!$E:$E,Q27)-COUNTIF(Declaration!$E$4:$E$8,Q27)<>0,1,0) -> 0 | AO27: SUISSE | AP27: CH
A28: 010703 | B28: Pâtes de fruits, fruits confits, marrons glacés | E28: 018 | F28: Bracelet élastique | Q28: 080 | R28: =IF(COUNTIF(Declaration!$E:$E,Q28)-COUNTIF(Declaration!$E$4:$E$8,Q28)<>0,1,0) -> 0 | AO28: DANEMARK | AP28: DK
A29: 010704 | B29: Chewing-gum et bubble gum | E29: 019 | F29: Brique | Q29: 079 | R29: =IF(COUNTIF(Declaration!$E:$E,Q29)-COUNTIF(Declaration!$E$4:$E$8,Q29)<>0,1,0) -> 0 | AO29: ETATS-UNIS | AP29: US
A30: 010705 | B30: Sucettes et sucres d’orge | E30: 020 | F30: Canette | Q30: 081 | R30: =IF(COUNTIF(Declaration!$E:$E,Q30)-COUNTIF(Declaration!$E$4:$E$8,Q30)<>0,1,0) -> 0 | AO30: HONG KONG | AP30: HK
A31: 010706 | B31: Autres confiseries | E31: 021 | F31: Cageot, cagette | AO31: NORVEGE | AP31: NO
A32: 010801 | B32: Desserts prêts à être consommés | E32: 022 | F32: Caisse, caissette | AO32: AUSTRALIE | AP32: AU
A33: 010802 | B33: Produits pour la pâtisserie | E33: 023 | F33: Cale | AO33: SINGAPOUR | AP33: SG
A34: 010803 | B34: Préparations pour entremets et desserts | E34: B11 | F34: Capsule | AO34: IRLANDE | AP34: IE
A35: 010901 | B35: Lait concentré | E35: 024 | F35: Carafon | AO35: NOUVELLE-ZELANDE | AP35: NZ
A36: 010902 | B36: Lait en poudre | E36: 025 | F36: Cartouche | AO36: COREE, REPUBLIQUE DE | AP36: KR
A37: 011001 | B37: Farines | E37: 026 | F37: Casier | AO37: ISRAEL | AP37: IL
A38: 011002 | B38: Purées en flocons | E38: 027 | F38: Casier intermédiaire | AO38: AFRIQUE DU SUD | AP38: ZA
A39: 011003 | B39: Semoules et assimilés | E39: 083 | F39: Cavalier | AO39: NIGERIA | AP39: NG
A40: 011100 | B40: Pâtes alimentaires | E40: 028 | F40: Chevalet | AO40: COTE D'IVOIRE | AP40: CI
A41: 011201 | B41: Fruits secs | E41: 085 | F41: Cintre | AO41: TOGO | AP41: TG
A42: 011202 | B42: Légumes secs, tapioca, autres amidons et fécules | E42: 029 | F42: Coffre, coffret | AO42: BOLIVIE, l'ETAT PLURINATIONAL DE | AP42: BO
A43: 011203 | B43: Riz | E43: B12 | F43: Coiffe | AO43: MAURICE | AP43: MU
A44: 011204 | B44: Fruits et légumes lyophilisés et déshydratés | E44: 030 | F44: Coin (en polystyrène expansé) | AO44: ROUMANIE | AP44: RO
A45: 011205 | B45: Graines salées | E45: B13 | F45: Collerette enveloppante | AO45: SLOVAQUIE | AP45: SK
A46: 011301 | B46: Bouillons et aides culinaires | E46: 031 | F46: Collier, contour pack | AO46: ALGERIE | AP46: DZ
A47: 011302 | B47: Potages déshydratés à préparer | E47: 032 | F47: Coque préformée, thermoformée | AO47: SAMOA AMERICAINES | AP47: AS
A48: 011303 | B48: Potages instantanés | E48: 033 | F48: Cornet | AO48: ANDORRE | AP48: AD
A49: 011304 | B49: Potages liquides | E49: 034 | F49: Cornière | AO49: ANGOLA | AP49: AO
A50: 011401 | B50: Condiments | E50: 036 | F50: Coupe, coupelle | AO50: ANGUILLA | AP50: AI
A51: 011402 | B51: Mayonnaises | E51: 035 | F51: Coussin | AO51: ANTIGUA ET BARBUDA | AP51: AG
A52: 011403 | B52: Moutardes | E52: B14 | F52: Couvercle | AO52: ARGENTINE | AP52: AR
A53: 011404 | B53: Sauces déshydratées | E53: 037 | F53: Croisillon | AO53: ARMENIE | AP53: AM
A54: 011405 | B54: Sauces prêtes à l’emploi | E54: 038 | F54: Cubitainer | AO54: ARUBA | AP54: AW
A55: 011406 | B55: Sauces tomate et concentrés de tomates | E55: 039 | F55: Ecrin | AO55: AZERBAIDJAN | AP55: AZ
A56: 011407 | B56: Vinaigrettes | E56: 040 | F56: Elément de bourrage (chips, flocons, frites, copeaux de bois, bourre…) | AO56: BAHAMAS | AP56: BS
A57: 011500 | B57: Epices et poivres | E57: 041 | F57: Elément de mise en forme et de maintien des produits (carton de maintien, support de col…) | AO57: BAHREIN | AP57: BH
A58: 011601 | B58: Sel fin | E58: 043 | F58: Enveloppage (bonbons, portions individuelles…) | AO58: BANGLADESH | AP58: BD
A59: 011602 | B59: Gros sel | E59: 042 | F59: Enveloppe | AO59: BARBADE | AP59: BB
A60: 011700 | B60: Huiles alimentaires | E60: 101 | F60: Etiquette | AO60: BELARUS | AP60: BY
A61: 011800 | B61: Vinaigres | E61: 045 | F61: Etui rigide | AO61: BELIZE | AP61: BZ
A62: 011901 | B62: Sucre en morceaux | E62: 044 | F62: Etui souple | AO62: BENIN | AP62: BJ
A63: 011902 | B63: Sucre semoule | E63: 046 | F63: Feuille d’emballage (papier kraft, papier sulfurisé, papier cadeau…) | AO63: BERMUDES | AP63: BM
A64: 011903 | B64: Sucre cristallisé | E64: 047 | F64: Feuille plaquette (carton ondulé, fibre) | AO64: BHOUTAN | AP64: BT
A65: 011904 | B65: Sucres divers (sucre candi, sucre roux) | E65: 049 | F65: Fibre (bois, papier…) | AO65: BOTSWANA | AP65: BW
A66: 012001 | B66: Compotes | E66: 048 | F66: Ficelle (ruban, ruban adhésif, bolduc, feuillard, bande) | AO66: BRESIL | AP66: BR
A67: 012002 | B67: Confitures | E67: 050 | F67: Filet | AO67: BRUNEI DARUSSALAM | AP67: BN
A68: 012003 | B68: Crèmes de marrons | E68: 051 | F68: Film | AO68: BURKINA FASO | AP68: BF
A69: 012004 | B69: Gelées | E69: 053 | F69: Film à bulles | AO69: MYANMAR | AP69: MM
A70: 012005 | B70: Marmelades | E70: 052 | F70: Film alvéolaire expansé | AO70: BURUNDI | AP70: BI
A71: 012006 | B71: Miel | E71: 054 | F71: Flacon | AO71: CAMBODGE | AP71: KH
A72: 012007 | B72: Fruits au sirop | E72: 055 | F72: Flacon applicateur | AO72: CAMEROUN | AP72: CM
A73: 012100 | B73: Conserves de légumes | E73: 056 | F73: Fourreau | AO73: CAP-VERT | AP73: CV
A74: 012200 | B74: Conserves de poissons | E74: 057 | F74: Gaine | AO74: CENTRAFRICAINE, REPUBLIQUE | AP74: CF
A75: 012300 | B75: Conserves de viandes, charcuterie et salaisons | E75: 058 | F75: Gobelet | AO75: TCHAD | AP75: TD
A76: 012401 | B76: Chips | E76: 060 | F76: Housse | AO76: CHILI | AP76: CL
A77: 012402 | B77: Cassoulets | E77: 059 | F77: Intercalaire | AO77: COLOMBIE | AP77: CO
A78: 012403 | B78: Choucroutes garnies | E78: B15 | F78: Languette | AO78: COMORES | AP78: KM
A79: 012404 | B79: Escargots | E79: 061 | F79: Lien | AO79: CONGO, LA REPUBLIQUE DEMOCRATIQUE DU | AP79: CD
A80: 012405 | B80: Quenelles | E80: 062 | F80: Malette | AO80: CONGO | AP80: CG
A81: 012406 | B81: Plats cuisinés à préparer | E81: 063 | F81: Manchon | AO81: COSTA RICA | AP81: CR
A82: 012407 | B82: Plats cuisinés prêts à être consommés | E82: B16 | F82: Muselet | AO82: CROATIE | AP82: HR
A83: 012501 | B83: Laits infantiles | E83: B17 | F83: Opercule | AO83: CUBA | AP83: CU
A84: 012502 | B84: Aliments diététiques pour enfant | E84: 064 | F84: Panier | AO84: CHYPRE | AP84: CY
A85: 012600 | B85: Produits diététiques et de régime | E85: 084 | F85: Pick up | AO85: DJIBOUTI | AP85: DJ
A86: 012601 | B86: Produits de nutrition clinique | E86: 065 | F86: Plat | AO86: DOMINIQUE | AP86: DM
A87: 012801 | B87: Aliments humides pour chiens et chats | E87: 066 | F87: Plateau | AO87: DOMINICAINE, REPUBLIQUE | AP87: DO
A88: 012802 | B88: Aliments secs pour chiens et chats | E88: 067 | F88: Plateau alvéolaire | AO88: TIMOR-LESTE | AP88: TL
A89: 012803 | B89: Conserves pour animaux | E89: 068 | F89: Poche, pochette, pochon | AO89: EQUATEUR | AP89: EC
A90: 012804 | B90: Autres nourritures pour autres animaux | E90: 069 | F90: Pot | AO90: EGYPTE | AP90: EG
A91: 023001 | B91: Limonades, limes | E91: 070 | F91: Présentoir-socle | AO91: EL SALVADOR | AP91: SV
A92: 023002 | B92: Sodas, colas et tonics | E92: 071 | F92: Sac | AO92: GUINEE EQUATORIALE | AP92: GQ
A93: 023003 | B93: Jus de fruits et concentrés | E93: 086 | F93: Sac bretelles | AO93: ERYTHREE | AP93: ER
A94: 023004 | B94: Nectars | E94: 089 | F94: Sac cabas papier | AO94: ESTONIE | AP94: EE
A95: 023005 | B95: Boissons aux fruits | E95: 088 | F95: Sac cabas plastique | AO95: ETHIOPIE | AP95: ET
A96: 023006 | B96: Sirops et sucre de canne | E96: 087 | F96: Sac liasse | AO96: FALKLAND, ILES (MALVINAS) | AP96: FK
A97: 023007 | B97: Extraits pour boissons et sels effervescents | E97: 072 | F97: Sachet et sachet à fond plat | AO97: FEROE, ILES | AP97: FO
A98: 023101 | B98: Bières | E98: 073 | F98: Seau | AO98: FIDJI | AP98: FJ
A99: 023102 | B99: Cidres | E99: 074 | F99: Skin-pack | AO99: GABON | AP99: GA
A100: 023103 | B100: Panachés | E100: 076 | F100: Socle | AO100: GAMBIE | AP100: GM
A101: 023200 | B101: Eaux | E101: 075 | F101: Stick | AO101: GEORGIE | AP101: GE
A102: 023400 | B102: Vins | E102: 077 | F102: Terrine | AO102: GHANA | AP102: GH
A103: 023500 | B103: Champagnes et mousseux | E103: 078 | F103: Tonnelet, fût | AO103: GRENADE | AP103: GD
A104: 023600 | B104: Apéritifs | E104: 080 | F104: Tube rigide | AO104: GROENLAND | AP104: GL
A105: 023700 | B105: Alcools et eaux de vie | E105: 079 | F105: Tube souple | AO105: GIBRALTAR | AP105: GI
A106: 034001 | B106: Pains | E106: 081 | F106: Tube-bâton | AO106: GUADELOUPE | AP106: GP
A107: 034002 | B107: Articles de boulangerie | E107: 082 | F107: Valise, valisette | AO107: GUAM | AP107: GU
A108: 034003 | B108: Pâtisseries fraîches et entremets prêts à être consommés | E108: B18 | F108: Fermeture barquette | AO108: GUATEMALA | AP108: GT
A109: 034101 | B109: Glaces familiales | E109: B19 | F109: Fermeture blister | AO109: GUERNESEY | AP109: GG
A110: 034102 | B110: Glaces individuelles | E110: 103 | F110: Applicateur | AO110: GUINEE | AP110: GN
A111: 034103 | B111: Glaces en vrac | E111: 104 | F111: Seringue pré-remplie | AO111: GUINEE-BISSAU | AP111: GW
A112: 034104 | B112: Surgelés entrées – charcuterie | AO112: GUYANA | AP112: GY
A113: 034105 | B113: Surgelés légumes | AO113: HAITI | AP113: HT
A114: 034106 | B114: Surgelés abats – viandes – volailles | AO114: HEARD, ILE ET MCDONALD, ILES | AP114: HM
A115: 034107 | B115: Surgelés poissons – mollusques – crustacés | AO115: SAINT-SIEGE (ETAT DE LA CITE DU VATICAN) | AP115: VA
A116: 034108 | B116: Surgelés plats cuisinés – sauces – potages | AO116: HONDURAS | AP116: HN
A117: 034109 | B117: Surgelés pâtisseries – viennoiseries – pâtes surgelées | AO117: ISLANDE | AP117: IS
A118: 034110 | B118: Surgelés fruits et jus de fruits | AO118: INDE | AP118: IN
A119: 034111 | B119: Surgelés produits laitiers | AO119: INDONESIE | AP119: ID
A120: 034112 | B120: Surgelés aliments pour animaux | AO120: IRAN, REPUBLIQUE ISLAMIQUE D' | AP120: IR
A121: 034201 | B121: Laits | AO121: IRAQ | AP121: IQ
A122: 034202 | B122: Yaourts et assimilés | AO122: ILE DE MAN | AP122: IM
A123: 034203 | B123: Crèmes et fromages blancs | AO123: JAMAIQUE | AP123: JM
A124: 034204 | B124: Beurres | AO124: JERSEY | AP124: JE
A125: 034205 | B125: Margarines ou graisses végétales | AO125: JORDANIE | AP125: JO
A126: 034206 | B126: Œufs | AO126: KAZAKHSTAN | AP126: KZ
A127: 034207 | B127: Desserts lactés et entremets | AO127: KENYA | AP127: KE
A128: 034301 | B128: Pâtes molles à croûte fleurie ou lavée | AO128: KIRIBATI | AP128: KI
A129: 034302 | B129: Pâtes pressées, cuites ou non cuites | AO129: COREE, REPUBLIQUE POPULAIRE DEMOCRATIQUE DE | AP129: KP
A130: 034303 | B130: Fromages de chèvre et de brebis | AO130: KOWEIT | AP130: KW
A131: 034304 | B131: Pâtes persillées | AO131: KIRGHIZISTAN | AP131: KG
A132: 034305 | B132: Fromages fondus | AO132: LAO, REPUBLIQUE DEMOCRATIQUE POPULAIRE | AP132: LA
A133: 034306 | B133: Fromages frais et assimilés | AO133: LETTONIE | AP133: LV
A134: 034400 | B134: Fruits frais | AO134: LIBAN | AP134: LB
A135: 034500 | B135: Légumes frais | AO135: LESOTHO | AP135: LS
A136: 034510 | B136: Fleurs et plantes | AO136: LIBERIA | AP136: LR
A137: 034601 | B137: Volailles et gibiers | AO137: LIBYENNE, JAMAHIRIYA ARABE | AP137: LY
A138: 034700 | B138: Produits traiteur | AO138: LIECHTENSTEIN | AP138: LI
A139: 034701 | B139: Hors d’œuvres | AO139: LITUANIE | AP139: LT
A140: 034702 | B140: Produits en pâte | AO140: MACAO | AP140: MO
A141: 034703 | B141: Plats cuisinés et viandes à réchauffer | AO141: MACEDOINE, L'EX-REPUBLIQUE YOUGOSLAVE DE | AP141: MK
A142: 034704 | B142: Sandwichs | AO142: MADAGASCAR | AP142: MG
A143: 034800 | B143: Boucherie et triperie | AO143: MALAWI | AP143: MW
A144: 034900 | B144: Poissons – crustacés – coquillages | AO144: MALAISIE | AP144: MY
A145: 046401 | B145: Shampooings | AO145: MALDIVES | AP145: MV
A146: 046402 | B146: Après shampooings, baumes embellisseurs | AO146: MALI | AP146: ML
A147: 046403 | B147: Lotions et vitaliseurs | AO147: MALTE | AP147: MT
A148: 046404 | B148: Fixateurs et brillantines | AO148: MARSHALL, ILES | AP148: MH
A149: 046405 | B149: Coloration capillaire | AO149: MARTINIQUE | AP149: MQ
A150: 046406 | B150: Mise en plis et permanente | AO150: MAURITANIE | AP150: MR
A151: 046407 | B151: Laques | AO151: HONGRIE | AP151: HU
A152: 046408 | B152: Accessoires capillaires | AO152: MAYOTTE | AP152: YT
A153: 046501 | B153: Savons de toilette solides et liquides | AO153: MEXIQUE | AP153: MX
A154: 046502 | B154: Produits de bains et douches | AO154: MICRONESIE, ETATS FEDERES DE | AP154: FM
A155: 046503 | B155: Soins des dents | AO155: MOLDOVA, REPUBLIQUE DE | AP155: MD
A156: 046504 | B156: Rasoirs, lames, produits de rasage | AO156: MONACO | AP156: MC
A157: 046505 | B157: Déodorants | AO157: MONGOLIE | AP157: MN
A158: 046506 | B158: Eaux de toilette et eaux de cologne | AO158: MONTENEGRO | AP158: ME
A159: 046507 | B159: Parfums et eaux de parfums | AO159: MONTSERRAT | AP159: MS
A160: 046508 | B160: Produits pour le corps | AO160: MAROC | AP160: MA
A161: 046509 | B161: Beauté et soins des ongles | AO161: MOZAMBIQUE | AP161: MZ
A162: 046510 | B162: Produits solaires | AO162: NAMIBIE | AP162: NA
A163: 046601 | B163: Laits de toilette | AO163: NAURU | AP163: NR
A164: 046602 | B164: Lotions et toniques | AO164: NEPAL | AP164: NP
A165: 046603 | B165: Crèmes de beauté | AO165: NOUVELLE-CALEDONIE | AP165: NC
A166: 046604 | B166: Nettoyants et crèmes gommantes | AO166: NICARAGUA | AP166: NI
A167: 046605 | B167: Soins spécifiques du visage | AO167: NIGER | AP167: NE
A168: 046606 | B168: Soins des lèvres | AO168: NIUE | AP168: NU
A169: 046607 | B169: Démaquillants | AO169: NORFOLK, ILE | AP169: NF
A170: 046608 | B170: Atomiseurs d’eau | AO170: MARIANNES DU NORD, ILES | AP170: MP
A171: 046609 | B171: Produits de maquillage | AO171: OMAN | AP171: OM
A172: 046621 | B172: Articles de puériculture | AO172: PAKISTAN | AP172: PK
A173: 046701 | B173: Cotons | AO173: PALAOS | AP173: PW
A174: 046702 | B174: Mouchoirs | AO174: PALESTINIEN OCCUPE, TERRITOIRE | AP174: PS
A175: 046703 | B175: Papier d’entretien et hygiénique | AO175: PANAMA | AP175: PA
A176: 046704 | B176: Couches bébés | AO176: PAPOUASIE-NOUVELLE-GUINEE | AP176: PG
A177: 046705 | B177: Hygiène féminine | AO177: PARAGUAY | AP177: PY
A178: 046706 | B178: Accessoires de toilette et de beauté | AO178: PEROU | AP178: PE
A179: 046712 | B179: Soins bucco-dentaires | AO179: PHILIPPINES | AP179: PH
A180: 046713 | B180: Soins des pieds | AO180: PITCAIRN | AP180: PN
A181: 046714 | B181: Hygiène intime | AO181: PORTO RICO | AP181: PR
A182: 046715 | B182: Produits de protection | AO182: QATAR | AP182: QA
A183: 046716 | B183: Compléments nutritionnels | AO183: REUNION | AP183: RE
A184: 046717 | B184: Produits de soins pour bébés | AO184: RUSSIE, FEDERATION DE | AP184: RU
A185: 046718 | B185: Accessoires de parapharmacie | AO185: RWANDA | AP185: RW
A186: 046719 | B186: Accessoires médicaux | AO186: SAINT-BARTHELEMY | AP186: BL
A187: 046720 | B187: Optique | AO187: SAINT-KITTS-ET-NEVIS | AP187: KN
A188: 046721 | B188: Optique non médicale | AO188: SAINTE-LUCIE | AP188: LC
A189: 046722 | B189: Lunetterie | AO189: SAINT-MARTIN (PARTIE FRANCAISE) | AP189: MF
A190: 046723 | B190: Instruments de mesure (thermomètre, baromètre…) | AO190: SAINT-PIERRE-ET-MIQUELON | AP190: PM
A191: 055001 | B191: Savons | AO191: SAINT-VINCENT-ET-LES GRENADINES | AP191: VC
A192: 055002 | B192: Poudres et liquides de lavage du linge | AO192: SAMOA | AP192: WS
A193: 055003 | B193: Produits pour lavages délicats, adoucissants et assouplissants | AO193: SAINT-MARIN | AP193: SM
A194: 055004 | B194: Eau de Javel et désinfectants pour linge | AO194: SAO TOME-ET-PRINCIPE | AP194: ST
A195: 055005 | B195: Détachants, apprêts, teintures | AO195: ARABIE SAOUDITE | AP195: SA
A196: 055006 | B196: Produits de lessivage | AO196: SENEGAL | AP196: SN
A197: 055007 | B197: Produits à vaisselle | AO197: SERBIE | AP197: RS
A198: 055008 | B198: Accessoires de lavage | AO198: SEYCHELLES | AP198: SC
A199: 055101 | B199: Entretien des cuirs et chaussures | AO199: SIERRA LEONE | AP199: SL
A200: 055102 | B200: Entretien des bois et des revêtements de sols | AO200: SLOVENIE | AP200: SI
A201: 055103 | B201: Entretien des métaux et des vitres | AO201: SALOMON, ILES | AP201: SB
A202: 055104 | B202: Entretien des fours et fourneaux | AO202: SOMALIE | AP202: SO
... 195 more rows

Sheet Exemples
M1: =Titre_Sommaire -> Déclaration 2015 | AH1: =COLUMN() -> 34
A4: Exemples au tarif 2015
B6: Liens directs :
C7: =HYPERLINK(MID(CELL("filename",$A$11),FIND("[",CELL("filename",$A$11)),FIND("]",CELL("filename",$A$11))-FIND("[",CELL("filename",$A$11))+1) &"'" &MID(CELL("filename",$A$11),FIND("]",CELL("filename",$A$11))+1,LEN(CELL("filename",$A$11))-FIND("]",CELL("filename",$A$11))) &"'!"&CELL("adresse",$A$11),$B$11) -> 1 - Cas de la chaîne HIFI
C8: =HYPERLINK(MID(CELL("filename",$A$91),FIND("[",CELL("filename",$A$91)),FIND("]",CELL("filename",$A$91))-FIND("[",CELL("filename",$A$91))+1) &"'" &MID(CELL("filename",$A$91),FIND("]",CELL("filename",$A$91))+1,LEN(CELL("filename",$A$91))-FIND("]",CELL("filename",$A$91))) &"'!"&CELL("adresse",$A$91),$B$62) -> 2 - Cas du pack de bières
B11: 1 - Cas de la chaîne HIFI
C14: A - Caisse en papier carton recyclé : | K14: =HYPERLINK(MID(CELL("filename",A5),FIND("[",CELL("filename",A5)),FIND("]",CELL("filename",A5))-FIND("[",CELL("filename",A5))+1) &"'" &MID(CELL("filename",A5),FIND("]",CELL("filename",A5))+1,LEN(CELL("filename",A5))-FIND("]",CELL("filename",A5))) &"'!"&CELL("adresse",A5),"Remonter en haut") -> Remonter en haut
D17: Unité d'emballage | E17: Matériau | F17: Code matériau | G17: Poids de l'unité d'emballage | H17: Tarif matériau | I17: Tarif à l'unité
C18: 1 seule unité | D18: Caisse | E18: Papier-carton autre que brique (contenant + de 50% recyclé) | F18: 30 | G18: 1100 | H18: 16.33 | I18: 0.068
C20: Contribution au poids : 16.33 ct €/kg x 1 100 g / 1 000 = 17.9630 ct € + Contribution à l'emballage : 0.068 ct €
C21: 17.9630 - 10% = 16.1667 ct € (1)
C23: Contribution totale : 16.1667 ct € + 0.068 ct € = 16.2347 ct €
C24: (1) décote pour le carton contenant au moins 50 % de recyclé
C30: B - Cales en polystyrène :
D33: Unité d'emballage | E33: Matériau | F33: Code matériau | G33: Poids de l'unité d'emballage | H33: Tarif matériau | I33: Tarif à l'unité
C34: 1 seule unité | D34: Cale | E34: Autres emballages plastiques | F34: 43 | G34: 45 | H34: 28.06 | I34: 0.068
C36: Contribution au poids : 28.06 ct €/kg x 45 g / 1000 = 1.2627 ct € + Contribution à l'emballage : 0.068 ct €
C38: Contribution totale de la cale : 1.2627 ct € + 0.068 ct € = 1.3307 ct €
C39: Contribution totale pour 2 cales : 1.3307 ct € x 2 = 2.6614 ct €
C45: C - Sachets en plastique :
D48: Unité d'emballage | E48: Matériau | F48: Code matériau | G48: Poids de l'unité d'emballage | H48: Tarif matériau | I48: Tarif à l'unité
C49: 1 seule unité | D49: Sachet | E49: Autres emballages plastiques | F49: 43 | G49: 12.5 | H49: 28.06 | I49: 0.068
C51: Contribution au poids : 28.06 ct €/kg x 12.5 g / 1000 = 0.3508 ct € + Contribution à l'emballage : 0.068 ct €
C53: Contribution totale du sachet : 0.3508 ct € + 0.068 ct € = 0.4188 ct €
C54: Contribution totale pour 2 sachets : 0.4188 ct € x 2 = 0.8376 ct €
C56: CONTRIBUTION TOTALE POUR LA CHAINE HI-FI : 16.2347 ct € + 2.6614 ct € + 0.8376 ct € = 19.7337 ct €
B62: 2 - Cas du pack de bières
C65: A - Le pack : | K65: =HYPERLINK(MID(CELL("filename",A5),FIND("[",CELL("filename",A5)),FIND("]",CELL("filename",A5))-FIND("[",CELL("filename",A5))+1) &"'" &MID(CELL("filename",A5),FIND("]",CELL("filename",A5))+1,LEN(CELL("filename",A5))-FIND("]",CELL("filename",A5))) &"'!"&CELL("adresse",A5),"Remonter en haut") -> Remonter en haut
D67: Unité d'emballage | E67: Matériau | F67: Code matériau | G67: Poids de l'unité d'emballage | H67: Tarif matériau | I67: Tarif à l'unité
C68: 1 seule unité | D68: Pack | E68: Papier-carton autre que brique | F68: 30 | G68: 160 | H68: 16.33 | I68: 0.068
C70: Contribution au poids : 16.33 ct €/kg x 160 g / 1 000 = 2.6128 ct € + Contribution à l'emballage : 0.068 ct €
C72: Contribution totale : 2.6128 ct € + 0.068 ct € = 2.6808 ct €
C76: B - La bouteille
D78: Unité d'emballage | E78: Matériau | F78: Code matériau | G78: Poids de l'unité d'emballage | H78: Tarif matériau | I78: Tarif à l'unité
C79: 1 seule unité | D79: Bouteille | E79: Verre | F79: 50 | G79: 210 | H79: 1.21 | I79: 0.068
C81: Contribution au poids : 1.21 ct €/kg x 210 g / 1000 = 0.2541 ct € + Contribution à l'emballage : 0.068 ct €
C83: Contribution totale de la bouteille : 0.2541 ct € + 0.068 ct € = 0.3221 ct €
C84: Contribution totale pour 6 bouteilles : 0.3221 ct € x 6 = 1.9326 ct €
C88: C - La capsule
D90: Unité d'emballage | E90: Matériau | F90: Code matériau | G90: Poids de l'unité d'emballage | H90: Tarif matériau | I90: Tarif à l'unité
C91: 1 seule unité | D91: Capsule | E91: Acier | F91: 10 | G91: 2 | H91: 3.15 | I91: 0.068
C93: Contribution au poids : 3.15 ct €/kg x 2 g / 1000 = 0.0063 ct € + Contribution à l'emballage : 0.068 ct €
C95: Contribution totale d'une capsule : 0.0063 ct € + 0.068 ct € = 0.0743 ct €
C96: Contribution totale pour 6 capsules : 0.0743 ct € x 6 = 0.4458 ct €
C98: CONTRIBUTION TOTALE POUR LE PACK DE BIERE : 2.6808 ct € + 1.9326 ct € + 0.4458 ct € = 5.0592 ct €

Sheet Specs (hidden)
A1: Alphabet "alphanumérique" | K1: Alphabet "alphanumérique restreint" | X1: 15-01-2016 09:45 | Y1: v2015-12-16
A2: Numéro ASCII | B2: Caractère | C2: Autorisation | D2: Compteur | F2: =COUNTIF(G$3:G$257,"<>-") -> 189 | G2: Liste numéros ASCII autorisés | H2: Liste caractères autorisés | K2: Numéro ASCII | L2: Caractère | M2: Autorisation | N2: Compteur | P2: =COUNTIF(Q$3:Q$257,"<>-") -> 70 | Q2: Liste numéros ASCII autorisés | R2: Liste caractères autorisés
A3: 1 | B3: =CHAR(A3) ->  | C3: 0 | D3: =IF(C3=1,SUM(C$3:C3),"") ->  | F3: 1 | G3: =IF(ISERROR(MATCH(F3,D$3:D$257,0)),"-",INDEX(A$3:A$257,MATCH(F3,D$3:D$257,0))) -> 32 | H3: =IF(G3<>"-",CHAR(G3),"") ->  | K3: 1 | L3: =CHAR(K3) ->  | M3: 1 | N3: =IF(M3=1,SUM(M$3:M3),"") -> 1 | P3: 1 | Q3: =IF(ISERROR(MATCH(P3,N$3:N$257,0)),"-",INDEX(K$3:K$257,MATCH(P3,N$3:N$257,0))) -> 1 | R3: =IF(Q3<>"-",CHAR(Q3),"") -> 
A4: =A3+1 -> 2 | B4: =CHAR(A4) ->  | C4: 0 | D4: =IF(C4=1,SUM(C$3:C4),"") ->  | F4: =F3+1 -> 2 | G4: 33 | H4: ! | K4: =K3+1 -> 2 | L4: =CHAR(K4) ->  | M4: 0 | N4: =IF(M4=1,SUM(M$3:M4),"") ->  | P4: =P3+1 -> 2 | Q4: 9
A5: =A4+1 -> 3 | B5:  | C5: 0 | D5: =IF(C5=1,SUM(C$3:C5),"") ->  | F5: =F4+1 -> 3 | G5: 34 | H5: " | K5: =K4+1 -> 3 | L5:  | M5: 0 | N5: =IF(M5=1,SUM(M$3:M5),"") ->  | P5: =P4+1 -> 3 | Q5: 28
A6: 4 | B6:  | C6: 0 | D6: =IF(C6=1,SUM(C$3:C6),"") ->  | F6: 4 | G6: 35 | H6: # | K6: 4 | L6:  | M6: 0 | N6: =IF(M6=1,SUM(M$3:M6),"") ->  | P6: 4 | Q6: 29
A7: 5 | B7: =CHAR(A7) ->  | C7: 0 | D7: =IF(C7=1,SUM(C$3:C7),"") ->  | F7: 5 | G7: 36 | H7: $ | K7: 5 | L7:  | M7: 0 | N7: =IF(M7=1,SUM(M$3:M7),"") ->  | P7: 5 | Q7: 30
A8: 6 | B8:  | C8: 0 | D8: =IF(C8=1,SUM(C$3:C8),"") ->  | F8: 6 | G8: 37 | H8: % | K8: 6 | L8:  | M8: 0 | N8: =IF(M8=1,SUM(M$3:M8),"") ->  | P8: 6 | Q8: 31
A9: 7 | B9:  | C9: 0 | D9: =IF(C9=1,SUM(C$3:C9),"") ->  | F9: 7 | G9: 38 | H9: & | K9: 7 | L9:  | M9: 0 | N9: =IF(M9=1,SUM(M$3:M9),"") ->  | P9: 7 | Q9: 32
A10: 8 | B10:  | C10: 0 | D10: =IF(C10=1,SUM(C$3:C10),"") ->  | F10: 8 | G10: 39 | H10: ' | K10: 8 | L10:  | M10: 0 | N10: =IF(M10=1,SUM(M$3:M10),"") ->  | P10: 8 | Q10: 48 | R10: 0
A11: 9 | B11: =CHAR(A11) ->  | C11: 0 | D11: =IF(C11=1,SUM(C$3:C11),"") ->  | F11: 9 | G11: 40 | H11: ( | K11: 9 | M11: 1 | N11: =IF(M11=1,SUM(M$3:M11),"") -> 2 | P11: 9 | Q11: 49 | R11: 1
A12: 10 | C12: 0 | D12: =IF(C12=1,SUM(C$3:C12),"") ->  | F12: 10 | G12: 41 | H12: ) | K12: 10 | M12: 0 | N12: =IF(M12=1,SUM(M$3:M12),"") ->  | P12: 10 | Q12: 50 | R12: 2
A13: 11 | C13: 0 | D13: =IF(C13=1,SUM(C$3:C13),"") ->  | F13: 11 | G13: 42 | H13: * | K13: 11 | M13: 0 | N13: =IF(M13=1,SUM(M$3:M13),"") ->  | P13: 11 | Q13: 51 | R13: 3
A14: 12 | C14: 0 | D14: =IF(C14=1,SUM(C$3:C14),"") ->  | F14: 12 | G14: 43 | H14: + | K14: 12 | M14: 0 | N14: =IF(M14=1,SUM(M$3:M14),"") ->  | P14: 12 | Q14: 52 | R14: 4
A15: 13 | C15: 0 | D15: =IF(C15=1,SUM(C$3:C15),"") ->  | F15: 13 | G15: 44 | H15: , | K15: 13 | M15: 0 | N15: =IF(M15=1,SUM(M$3:M15),"") ->  | P15: 13 | Q15: 53 | R15: 5
A16: 14 | B16:  | C16: 0 | D16: =IF(C16=1,SUM(C$3:C16),"") ->  | F16: 14 | G16: 45 | H16: - | K16: 14 | L16:  | M16: 0 | N16: =IF(M16=1,SUM(M$3:M16),"") ->  | P16: 14 | Q16: 54 | R16: 6
A17: 15 | B17:  | C17: 0 | D17: =IF(C17=1,SUM(C$3:C17),"") ->  | F17: 15 | G17: 46 | H17: . | K17: 15 | L17:  | M17: 0 | N17: =IF(M17=1,SUM(M$3:M17),"") ->  | P17: 15 | Q17: 55 | R17: 7
A18: 16 | B18:  | C18: 0 | D18: =IF(C18=1,SUM(C$3:C18),"") ->  | F18: 16 | G18: 47 | H18: / | K18: 16 | L18:  | M18: 0 | N18: =IF(M18=1,SUM(M$3:M18),"") ->  | P18: 16 | Q18: 56 | R18: 8
A19: 17 | B19:  | C19: 0 | D19: =IF(C19=1,SUM(C$3:C19),"") ->  | F19: 17 | G19: 48 | H19: 0 | K19: 17 | L19:  | M19: 0 | N19: =IF(M19=1,SUM(M$3:M19),"") ->  | P19: 17 | Q19: 57 | R19: 9
A20: 18 | B20:  | C20: 0 | D20: =IF(C20=1,SUM(C$3:C20),"") ->  | F20: 18 | G20: 49 | H20: 1 | K20: 18 | L20:  | M20: 0 | N20: =IF(M20=1,SUM(M$3:M20),"") ->  | P20: 18 | Q20: 65 | R20: A
A21: 19 | B21:  | C21: 0 | D21: =IF(C21=1,SUM(C$3:C21),"") ->  | F21: 19 | G21: 50 | H21: 2 | K21: 19 | L21:  | M21: 0 | N21: =IF(M21=1,SUM(M$3:M21),"") ->  | P21: 19 | Q21: 66 | R21: B
A22: 20 | B22:  | C22: 0 | D22: =IF(C22=1,SUM(C$3:C22),"") ->  | F22: 20 | G22: 51 | H22: 3 | K22: 20 | L22:  | M22: 0 | N22: =IF(M22=1,SUM(M$3:M22),"") ->  | P22: 20 | Q22: 67 | R22: C
A23: 21 | B23:  | C23: 0 | D23: =IF(C23=1,SUM(C$3:C23),"") ->  | F23: 21 | G23: 52 | H23: 4 | K23: 21 | L23:  | M23: 0 | N23: =IF(M23=1,SUM(M$3:M23),"") ->  | P23: 21 | Q23: 68 | R23: D
A24: 22 | B24:  | C24: 0 | D24: =IF(C24=1,SUM(C$3:C24),"") ->  | F24: 22 | G24: 53 | H24: 5 | K24: 22 | L24:  | M24: 0 | N24: =IF(M24=1,SUM(M$3:M24),"") ->  | P24: 22 | Q24: 69 | R24: E
A25: 23 | B25:  | C25: 0 | D25: =IF(C25=1,SUM(C$3:C25),"") ->  | F25: 23 | G25: 54 | H25: 6 | K25: 23 | L25:  | M25: 0 | N25: =IF(M25=1,SUM(M$3:M25),"") ->  | P25: 23 | Q25: 70 | R25: F
A26: 24 | B26:  | C26: 0 | D26: =IF(C26=1,SUM(C$3:C26),"") ->  | F26: 24 | G26: 55 | H26: 7 | K26: 24 | L26:  | M26: 0 | N26: =IF(M26=1,SUM(M$3:M26),"") ->  | P26: 24 | Q26: 71 | R26: G
A27: 25 | B27:  | C27: 0 | D27: =IF(C27=1,SUM(C$3:C27),"") ->  | F27: 25 | G27: 56 | H27: 8 | K27: 25 | L27:  | M27: 0 | N27: =IF(M27=1,SUM(M$3:M27),"") ->  | P27: 25 | Q27: 72 | R27: H
A28: 26 | B28:  | C28: 0 | D28: =IF(C28=1,SUM(C$3:C28),"") ->  | F28: 26 | G28: 57 | H28: 9 | K28: 26 | L28:  | M28: 0 | N28: =IF(M28=1,SUM(M$3:M28),"") ->  | P28: 26 | Q28: 73 | R28: I
A29: 27 | B29:  | C29: 0 | D29: =IF(C29=1,SUM(C$3:C29),"") ->  | F29: 27 | G29: 58 | H29: : | K29: 27 | L29:  | M29: 0 | N29: =IF(M29=1,SUM(M$3:M29),"") ->  | P29: 27 | Q29: 74 | R29: J
A30: 28 | C30: 0 | D30: =IF(C30=1,SUM(C$3:C30),"") ->  | F30: 28 | G30: 59 | H30: ; | K30: 28 | M30: 1 | N30: =IF(M30=1,SUM(M$3:M30),"") -> 3 | P30: 28 | Q30: 75 | R30: K
A31: 29 | C31: 0 | D31: =IF(C31=1,SUM(C$3:C31),"") ->  | F31: 29 | G31: 60 | H31: < | K31: 29 | M31: 1 | N31: =IF(M31=1,SUM(M$3:M31),"") -> 4 | P31: 29 | Q31: 76 | R31: L
A32: 30 | C32: 0 | D32: =IF(C32=1,SUM(C$3:C32),"") ->  | F32: 30 | G32: 61 | H32: = | K32: 30 | M32: 1 | N32: =IF(M32=1,SUM(M$3:M32),"") -> 5 | P32: 30 | Q32: 77 | R32: M
A33: 31 | C33: 0 | D33: =IF(C33=1,SUM(C$3:C33),"") ->  | F33: 31 | G33: 62 | H33: > | K33: 31 | M33: 1 | N33: =IF(M33=1,SUM(M$3:M33),"") -> 6 | P33: 31 | Q33: 78 | R33: N
A34: 32 | C34: 1 | D34: =IF(C34=1,SUM(C$3:C34),"") -> 1 | F34: 32 | G34: 63 | H34: ? | K34: 32 | M34: 1 | N34: =IF(M34=1,SUM(M$3:M34),"") -> 7 | P34: 32 | Q34: 79 | R34: O
A35: 33 | B35: ! | C35: 1 | D35: =IF(C35=1,SUM(C$3:C35),"") -> 2 | F35: 33 | G35: 64 | H35: @ | K35: 33 | L35: ! | M35: 0 | N35: =IF(M35=1,SUM(M$3:M35),"") ->  | P35: 33 | Q35: 80 | R35: P
A36: 34 | B36: " | C36: 1 | D36: =IF(C36=1,SUM(C$3:C36),"") -> 3 | F36: 34 | G36: 65 | H36: A | K36: 34 | L36: " | M36: 0 | N36: =IF(M36=1,SUM(M$3:M36),"") ->  | P36: 34 | Q36: 81 | R36: Q
A37: 35 | B37: # | C37: 1 | D37: =IF(C37=1,SUM(C$3:C37),"") -> 4 | F37: 35 | G37: 66 | H37: B | K37: 35 | L37: # | M37: 0 | N37: =IF(M37=1,SUM(M$3:M37),"") ->  | P37: 35 | Q37: 82 | R37: R
A38: 36 | B38: $ | C38: 1 | D38: =IF(C38=1,SUM(C$3:C38),"") -> 5 | F38: 36 | G38: 67 | H38: C | K38: 36 | L38: $ | M38: 0 | N38: =IF(M38=1,SUM(M$3:M38),"") ->  | P38: 36 | Q38: 83 | R38: S
A39: 37 | B39: % | C39: 1 | D39: =IF(C39=1,SUM(C$3:C39),"") -> 6 | F39: 37 | G39: 68 | H39: D | K39: 37 | L39: % | M39: 0 | N39: =IF(M39=1,SUM(M$3:M39),"") ->  | P39: 37 | Q39: 84 | R39: T
A40: 38 | B40: & | C40: 1 | D40: =IF(C40=1,SUM(C$3:C40),"") -> 7 | F40: 38 | G40: 69 | H40: E | K40: 38 | L40: & | M40: 0 | N40: =IF(M40=1,SUM(M$3:M40),"") ->  | P40: 38 | Q40: 85 | R40: U
A41: 39 | B41: ' | C41: 1 | D41: =IF(C41=1,SUM(C$3:C41),"") -> 8 | F41: 39 | G41: 70 | H41: F | K41: 39 | L41: ' | M41: 0 | N41: =IF(M41=1,SUM(M$3:M41),"") ->  | P41: 39 | Q41: 86 | R41: V
A42: 40 | B42: ( | C42: 1 | D42: =IF(C42=1,SUM(C$3:C42),"") -> 9 | F42: 40 | G42: 71 | H42: G | K42: 40 | L42: ( | M42: 0 | N42: =IF(M42=1,SUM(M$3:M42),"") ->  | P42: 40 | Q42: 87 | R42: W
A43: 41 | B43: ) | C43: 1 | D43: =IF(C43=1,SUM(C$3:C43),"") -> 10 | F43: 41 | G43: 72 | H43: H | K43: 41 | L43: ) | M43: 0 | N43: =IF(M43=1,SUM(M$3:M43),"") ->  | P43: 41 | Q43: 88 | R43: X
A44: 42 | B44: * | C44: 1 | D44: =IF(C44=1,SUM(C$3:C44),"") -> 11 | F44: 42 | G44: 73 | H44: I | K44: 42 | L44: * | M44: 0 | N44: =IF(M44=1,SUM(M$3:M44),"") ->  | P44: 42 | Q44: 89 | R44: Y
A45: 43 | B45: + | C45: 1 | D45: =IF(C45=1,SUM(C$3:C45),"") -> 12 | F45: 43 | G45: 74 | H45: J | K45: 43 | L45: + | M45: 0 | N45: =IF(M45=1,SUM(M$3:M45),"") ->  | P45: 43 | Q45: 90 | R45: Z
A46: 44 | B46: , | C46: 1 | D46: =IF(C46=1,SUM(C$3:C46),"") -> 13 | F46: 44 | G46: 75 | H46: K | K46: 44 | L46: , | M46: 0 | N46: =IF(M46=1,SUM(M$3:M46),"") ->  | P46: 44 | Q46: 97 | R46: a
A47: 45 | B47: - | C47: 1 | D47: =IF(C47=1,SUM(C$3:C47),"") -> 14 | F47: 45 | G47: 76 | H47: L | K47: 45 | L47: - | M47: 0 | N47: =IF(M47=1,SUM(M$3:M47),"") ->  | P47: 45 | Q47: 98 | R47: b
A48: 46 | B48: . | C48: 1 | D48: =IF(C48=1,SUM(C$3:C48),"") -> 15 | F48: 46 | G48: 77 | H48: M | K48: 46 | L48: . | M48: 0 | N48: =IF(M48=1,SUM(M$3:M48),"") ->  | P48: 46 | Q48: 99 | R48: c
A49: 47 | B49: / | C49: 1 | D49: =IF(C49=1,SUM(C$3:C49),"") -> 16 | F49: 47 | G49: 78 | H49: N | K49: 47 | L49: / | M49: 0 | N49: =IF(M49=1,SUM(M$3:M49),"") ->  | P49: 47 | Q49: 100 | R49: d
A50: 48 | B50: 0 | C50: 1 | D50: =IF(C50=1,SUM(C$3:C50),"") -> 17 | F50: 48 | G50: 79 | H50: O | K50: 48 | L50: 0 | M50: 1 | N50: =IF(M50=1,SUM(M$3:M50),"") -> 8 | P50: 48 | Q50: 101 | R50: e
A51: 49 | B51: 1 | C51: 1 | D51: =IF(C51=1,SUM(C$3:C51),"") -> 18 | F51: 49 | G51: 80 | H51: P | K51: 49 | L51: 1 | M51: 1 | N51: =IF(M51=1,SUM(M$3:M51),"") -> 9 | P51: 49 | Q51: 102 | R51: f
A52: 50 | B52: 2 | C52: 1 | D52: =IF(C52=1,SUM(C$3:C52),"") -> 19 | F52: 50 | G52: 81 | H52: Q | K52: 50 | L52: 2 | M52: 1 | N52: =IF(M52=1,SUM(M$3:M52),"") -> 10 | P52: 50 | Q52: 103 | R52: g
A53: 51 | B53: 3 | C53: 1 | D53: =IF(C53=1,SUM(C$3:C53),"") -> 20 | F53: 51 | G53: 82 | H53: R | K53: 51 | L53: 3 | M53: 1 | N53: =IF(M53=1,SUM(M$3:M53),"") -> 11 | P53: 51 | Q53: 104 | R53: h
A54: 52 | B54: 4 | C54: 1 | D54: =IF(C54=1,SUM(C$3:C54),"") -> 21 | F54: 52 | G54: 83 | H54: S | K54: 52 | L54: 4 | M54: 1 | N54: =IF(M54=1,SUM(M$3:M54),"") -> 12 | P54: 52 | Q54: 105 | R54: i
A55: 53 | B55: 5 | C55: 1 | D55: =IF(C55=1,SUM(C$3:C55),"") -> 22 | F55: 53 | G55: 84 | H55: T | K55: 53 | L55: 5 | M55: 1 | N55: =IF(M55=1,SUM(M$3:M55),"") -> 13 | P55: 53 | Q55: 106 | R55: j
A56: 54 | B56: 6 | C56: 1 | D56: =IF(C56=1,SUM(C$3:C56),"") -> 23 | F56: 54 | G56: 85 | H56: U | K56: 54 | L56: 6 | M56: 1 | N56: =IF(M56=1,SUM(M$3:M56),"") -> 14 | P56: 54 | Q56: 107 | R56: k
A57: 55 | B57: 7 | C57: 1 | D57: =IF(C57=1,SUM(C$3:C57),"") -> 24 | F57: 55 | G57: 86 | H57: V | K57: 55 | L57: 7 | M57: 1 | N57: =IF(M57=1,SUM(M$3:M57),"") -> 15 | P57: 55 | Q57: 108 | R57: l
A58: 56 | B58: 8 | C58: 1 | D58: =IF(C58=1,SUM(C$3:C58),"") -> 25 | F58: 56 | G58: 87 | H58: W | K58: 56 | L58: 8 | M58: 1 | N58: =IF(M58=1,SUM(M$3:M58),"") -> 16 | P58: 56 | Q58: 109 | R58: m
A59: 57 | B59: 9 | C59: 1 | D59: =IF(C59=1,SUM(C$3:C59),"") -> 26 | F59: 57 | G59: 88 | H59: X | K59: 57 | L59: 9 | M59: 1 | N59: =IF(M59=1,SUM(M$3:M59),"") -> 17 | P59: 57 | Q59: 110 | R59: n
A60: 58 | B60: : | C60: 1 | D60: =IF(C60=1,SUM(C$3:C60),"") -> 27 | F60: 58 | G60: 89 | H60: Y | K60: 58 | L60: : | M60: 0 | N60: =IF(M60=1,SUM(M$3:M60),"") ->  | P60: 58 | Q60: 111 | R60: o
A61: 59 | B61: ; | C61: 1 | D61: =IF(C61=1,SUM(C$3:C61),"") -> 28 | F61: 59 | G61: 90 | H61: Z | K61: 59 | L61: ; | M61: 0 | N61: =IF(M61=1,SUM(M$3:M61),"") ->  | P61: 59 | Q61: 112 | R61: p
A62: 60 | B62: < | C62: 1 | D62: =IF(C62=1,SUM(C$3:C62),"") -> 29 | F62: 60 | G62: 91 | H62: [ | K62: 60 | L62: < | M62: 0 | N62: =IF(M62=1,SUM(M$3:M62),"") ->  | P62: 60 | Q62: 113 | R62: q
A63: 61 | B63: = | C63: 1 | D63: =IF(C63=1,SUM(C$3:C63),"") -> 30 | F63: 61 | G63: 92 | H63: \ | K63: 61 | L63: = | M63: 0 | N63: =IF(M63=1,SUM(M$3:M63),"") ->  | P63: 61 | Q63: 114 | R63: r
A64: 62 | B64: > | C64: 1 | D64: =IF(C64=1,SUM(C$3:C64),"") -> 31 | F64: 62 | G64: 93 | H64: ] | K64: 62 | L64: > | M64: 0 | N64: =IF(M64=1,SUM(M$3:M64),"") ->  | P64: 62 | Q64: 115 | R64: s
A65: 63 | B65: ? | C65: 1 | D65: =IF(C65=1,SUM(C$3:C65),"") -> 32 | F65: 63 | G65: 94 | H65: ^ | K65: 63 | L65: ? | M65: 0 | N65: =IF(M65=1,SUM(M$3:M65),"") ->  | P65: 63 | Q65: 116 | R65: t
A66: 64 | B66: @ | C66: 1 | D66: =IF(C66=1,SUM(C$3:C66),"") -> 33 | F66: 64 | G66: 95 | H66: _ | K66: 64 | L66: @ | M66: 0 | N66: =IF(M66=1,SUM(M$3:M66),"") ->  | P66: 64 | Q66: 117 | R66: u
A67: 65 | B67: A | C67: 1 | D67: =IF(C67=1,SUM(C$3:C67),"") -> 34 | F67: 65 | G67: =IF(ISERROR(MATCH(F67,D$3:D$257,0)),"-",INDEX(A$3:A$257,MATCH(F67,D$3:D$257,0))) -> 96 | H67: =IF(G67<>"-",CHAR(G67),"") -> ` | K67: 65 | L67: A | M67: 1 | N67: =IF(M67=1,SUM(M$3:M67),"") -> 18 | P67: 65 | Q67: =IF(ISERROR(MATCH(P67,N$3:N$257,0)),"-",INDEX(K$3:K$257,MATCH(P67,N$3:N$257,0))) -> 118 | R67: =IF(Q67<>"-",CHAR(Q67),"") -> v
A68: 66 | B68: =CHAR(A68) -> B | C68: 1 | D68: =IF(C68=1,SUM(C$3:C68),"") -> 35 | F68: 66 | G68: 97 | H68: a | K68: 66 | L68: =CHAR(K68) -> B | M68: 1 | N68: =IF(M68=1,SUM(M$3:M68),"") -> 19 | P68: 66 | Q68: 119 | R68: w
A69: =A68+1 -> 67 | B69: C | C69: 1 | D69: =IF(C69=1,SUM(C$3:C69),"") -> 36 | F69: =F68+1 -> 67 | G69: 98 | H69: b | K69: =K68+1 -> 67 | L69: C | M69: 1 | N69: =IF(M69=1,SUM(M$3:M69),"") -> 20 | P69: =P68+1 -> 67 | Q69: 120 | R69: x
A70: 68 | B70: D | C70: 1 | D70: =IF(C70=1,SUM(C$3:C70),"") -> 37 | F70: 68 | G70: 99 | H70: c | K70: 68 | L70: D | M70: 1 | N70: =IF(M70=1,SUM(M$3:M70),"") -> 21 | P70: 68 | Q70: 121 | R70: y
A71: 69 | B71: E | C71: 1 | D71: =IF(C71=1,SUM(C$3:C71),"") -> 38 | F71: 69 | G71: 100 | H71: d | K71: 69 | L71: E | M71: 1 | N71: =IF(M71=1,SUM(M$3:M71),"") -> 22 | P71: 69 | Q71: 122 | R71: z
A72: 70 | B72: F | C72: 1 | D72: =IF(C72=1,SUM(C$3:C72),"") -> 39 | F72: 70 | G72: 101 | H72: e | K72: 70 | L72: F | M72: 1 | N72: =IF(M72=1,SUM(M$3:M72),"") -> 23 | P72: 70 | Q72: 129 | R72: 
A73: 71 | B73: G | C73: 1 | D73: =IF(C73=1,SUM(C$3:C73),"") -> 40 | F73: 71 | G73: 102 | H73: f | K73: 71 | L73: G | M73: 1 | N73: =IF(M73=1,SUM(M$3:M73),"") -> 24 | P73: 71 | Q73: -
A74: 72 | B74: H | C74: 1 | D74: =IF(C74=1,SUM(C$3:C74),"") -> 41 | F74: 72 | G74: 103 | H74: g | K74: 72 | L74: H | M74: 1 | N74: =IF(M74=1,SUM(M$3:M74),"") -> 25 | P74: 72 | Q74: -
A75: 73 | B75: I | C75: 1 | D75: =IF(C75=1,SUM(C$3:C75),"") -> 42 | F75: 73 | G75: 104 | H75: h | K75: 73 | L75: I | M75: 1 | N75: =IF(M75=1,SUM(M$3:M75),"") -> 26 | P75: 73 | Q75: -
A76: 74 | B76: J | C76: 1 | D76: =IF(C76=1,SUM(C$3:C76),"") -> 43 | F76: 74 | G76: 105 | H76: i | K76: 74 | L76: J | M76: 1 | N76: =IF(M76=1,SUM(M$3:M76),"") -> 27 | P76: 74 | Q76: -
A77: 75 | B77: K | C77: 1 | D77: =IF(C77=1,SUM(C$3:C77),"") -> 44 | F77: 75 | G77: 106 | H77: j | K77: 75 | L77: K | M77: 1 | N77: =IF(M77=1,SUM(M$3:M77),"") -> 28 | P77: 75 | Q77: -
A78: 76 | B78: L | C78: 1 | D78: =IF(C78=1,SUM(C$3:C78),"") -> 45 | F78: 76 | G78: 107 | H78: k | K78: 76 | L78: L | M78: 1 | N78: =IF(M78=1,SUM(M$3:M78),"") -> 29 | P78: 76 | Q78: -
A79: 77 | B79: M | C79: 1 | D79: =IF(C79=1,SUM(C$3:C79),"") -> 46 | F79: 77 | G79: 108 | H79: l | K79: 77 | L79: M | M79: 1 | N79: =IF(M79=1,SUM(M$3:M79),"") -> 30 | P79: 77 | Q79: -
A80: 78 | B80: N | C80: 1 | D80: =IF(C80=1,SUM(C$3:C80),"") -> 47 | F80: 78 | G80: 109 | H80: m | K80: 78 | L80: N | M80: 1 | N80: =IF(M80=1,SUM(M$3:M80),"") -> 31 | P80: 78 | Q80: -
A81: 79 | B81: O | C81: 1 | D81: =IF(C81=1,SUM(C$3:C81),"") -> 48 | F81: 79 | G81: 110 | H81: n | K81: 79 | L81: O | M81: 1 | N81: =IF(M81=1,SUM(M$3:M81),"") -> 32 | P81: 79 | Q81: -
A82: 80 | B82: P | C82: 1 | D82: =IF(C82=1,SUM(C$3:C82),"") -> 49 | F82: 80 | G82: 111 | H82: o | K82: 80 | L82: P | M82: 1 | N82: =IF(M82=1,SUM(M$3:M82),"") -> 33 | P82: 80 | Q82: -
A83: 81 | B83: Q | C83: 1 | D83: =IF(C83=1,SUM(C$3:C83),"") -> 50 | F83: 81 | G83: 112 | H83: p | K83: 81 | L83: Q | M83: 1 | N83: =IF(M83=1,SUM(M$3:M83),"") -> 34 | P83: 81 | Q83: -
A84: 82 | B84: R | C84: 1 | D84: =IF(C84=1,SUM(C$3:C84),"") -> 51 | F84: 82 | G84: 113 | H84: q | K84: 82 | L84: R | M84: 1 | N84: =IF(M84=1,SUM(M$3:M84),"") -> 35 | P84: 82 | Q84: -
A85: 83 | B85: S | C85: 1 | D85: =IF(C85=1,SUM(C$3:C85),"") -> 52 | F85: 83 | G85: 114 | H85: r | K85: 83 | L85: S | M85: 1 | N85: =IF(M85=1,SUM(M$3:M85),"") -> 36 | P85: 83 | Q85: -
A86: 84 | B86: T | C86: 1 | D86: =IF(C86=1,SUM(C$3:C86),"") -> 53 | F86: 84 | G86: 115 | H86: s | K86: 84 | L86: T | M86: 1 | N86: =IF(M86=1,SUM(M$3:M86),"") -> 37 | P86: 84 | Q86: -
A87: 85 | B87: U | C87: 1 | D87: =IF(C87=1,SUM(C$3:C87),"") -> 54 | F87: 85 | G87: 116 | H87: t | K87: 85 | L87: U | M87: 1 | N87: =IF(M87=1,SUM(M$3:M87),"") -> 38 | P87: 85 | Q87: -
A88: 86 | B88: V | C88: 1 | D88: =IF(C88=1,SUM(C$3:C88),"") -> 55 | F88: 86 | G88: 117 | H88: u | K88: 86 | L88: V | M88: 1 | N88: =IF(M88=1,SUM(M$3:M88),"") -> 39 | P88: 86 | Q88: -
A89: 87 | B89: W | C89: 1 | D89: =IF(C89=1,SUM(C$3:C89),"") -> 56 | F89: 87 | G89: 118 | H89: v | K89: 87 | L89: W | M89: 1 | N89: =IF(M89=1,SUM(M$3:M89),"") -> 40 | P89: 87 | Q89: -
A90: 88 | B90: X | C90: 1 | D90: =IF(C90=1,SUM(C$3:C90),"") -> 57 | F90: 88 | G90: 119 | H90: w | K90: 88 | L90: X | M90: 1 | N90: =IF(M90=1,SUM(M$3:M90),"") -> 41 | P90: 88 | Q90: -
A91: 89 | B91: Y | C91: 1 | D91: =IF(C91=1,SUM(C$3:C91),"") -> 58 | F91: 89 | G91: 120 | H91: x | K91: 89 | L91: Y | M91: 1 | N91: =IF(M91=1,SUM(M$3:M91),"") -> 42 | P91: 89 | Q91: -
A92: 90 | B92: Z | C92: 1 | D92: =IF(C92=1,SUM(C$3:C92),"") -> 59 | F92: 90 | G92: 121 | H92: y | K92: 90 | L92: Z | M92: 1 | N92: =IF(M92=1,SUM(M$3:M92),"") -> 43 | P92: 90 | Q92: -
A93: 91 | B93: [ | C93: 1 | D93: =IF(C93=1,SUM(C$3:C93),"") -> 60 | F93: 91 | G93: 122 | H93: z | K93: 91 | L93: [ | M93: 0 | N93: =IF(M93=1,SUM(M$3:M93),"") ->  | P93: 91 | Q93: -
A94: 92 | B94: \ | C94: 1 | D94: =IF(C94=1,SUM(C$3:C94),"") -> 61 | F94: 92 | G94: 123 | H94: { | K94: 92 | L94: \ | M94: 0 | N94: =IF(M94=1,SUM(M$3:M94),"") ->  | P94: 92 | Q94: -
A95: 93 | B95: ] | C95: 1 | D95: =IF(C95=1,SUM(C$3:C95),"") -> 62 | F95: 93 | G95: 124 | H95: | | K95: 93 | L95: ] | M95: 0 | N95: =IF(M95=1,SUM(M$3:M95),"") ->  | P95: 93 | Q95: -
A96: 94 | B96: ^ | C96: 1 | D96: =IF(C96=1,SUM(C$3:C96),"") -> 63 | F96: 94 | G96: 125 | H96: } | K96: 94 | L96: ^ | M96: 0 | N96: =IF(M96=1,SUM(M$3:M96),"") ->  | P96: 94 | Q96: -
A97: 95 | B97: _ | C97: 1 | D97: =IF(C97=1,SUM(C$3:C97),"") -> 64 | F97: 95 | G97: 126 | H97: ~ | K97: 95 | L97: _ | M97: 0 | N97: =IF(M97=1,SUM(M$3:M97),"") ->  | P97: 95 | Q97: -
A98: 96 | B98: ` | C98: 1 | D98: =IF(C98=1,SUM(C$3:C98),"") -> 65 | F98: 96 | G98: 161 | H98: ¡ | K98: 96 | L98: ` | M98: 0 | N98: =IF(M98=1,SUM(M$3:M98),"") ->  | P98: 96 | Q98: -
A99: 97 | B99: a | C99: 1 | D99: =IF(C99=1,SUM(C$3:C99),"") -> 66 | F99: 97 | G99: 162 | H99: ¢ | K99: 97 | L99: a | M99: 1 | N99: =IF(M99=1,SUM(M$3:M99),"") -> 44 | P99: 97 | Q99: -
A100: 98 | B100: b | C100: 1 | D100: =IF(C100=1,SUM(C$3:C100),"") -> 67 | F100: 98 | G100: 163 | H100: £ | K100: 98 | L100: b | M100: 1 | N100: =IF(M100=1,SUM(M$3:M100),"") -> 45 | P100: 98 | Q100: -
A101: 99 | B101: c | C101: 1 | D101: =IF(C101=1,SUM(C$3:C101),"") -> 68 | F101: 99 | G101: 164 | H101: ¤ | K101: 99 | L101: c | M101: 1 | N101: =IF(M101=1,SUM(M$3:M101),"") -> 46 | P101: 99 | Q101: -
A102: 100 | B102: d | C102: 1 | D102: =IF(C102=1,SUM(C$3:C102),"") -> 69 | F102: 100 | G102: 165 | H102: ¥ | K102: 100 | L102: d | M102: 1 | N102: =IF(M102=1,SUM(M$3:M102),"") -> 47 | P102: 100 | Q102: -
A103: 101 | B103: e | C103: 1 | D103: =IF(C103=1,SUM(C$3:C103),"") -> 70 | F103: 101 | G103: 166 | H103: ¦ | K103: 101 | L103: e | M103: 1 | N103: =IF(M103=1,SUM(M$3:M103),"") -> 48 | P103: 101 | Q103: -
A104: 102 | B104: f | C104: 1 | D104: =IF(C104=1,SUM(C$3:C104),"") -> 71 | F104: 102 | G104: 167 | H104: § | K104: 102 | L104: f | M104: 1 | N104: =IF(M104=1,SUM(M$3:M104),"") -> 49 | P104: 102 | Q104: -
A105: 103 | B105: g | C105: 1 | D105: =IF(C105=1,SUM(C$3:C105),"") -> 72 | F105: 103 | G105: 168 | H105: ¨ | K105: 103 | L105: g | M105: 1 | N105: =IF(M105=1,SUM(M$3:M105),"") -> 50 | P105: 103 | Q105: -
A106: 104 | B106: h | C106: 1 | D106: =IF(C106=1,SUM(C$3:C106),"") -> 73 | F106: 104 | G106: 169 | H106: © | K106: 104 | L106: h | M106: 1 | N106: =IF(M106=1,SUM(M$3:M106),"") -> 51 | P106: 104 | Q106: -
A107: 105 | B107: i | C107: 1 | D107: =IF(C107=1,SUM(C$3:C107),"") -> 74 | F107: 105 | G107: 170 | H107: ª | K107: 105 | L107: i | M107: 1 | N107: =IF(M107=1,SUM(M$3:M107),"") -> 52 | P107: 105 | Q107: -
A108: 106 | B108: j | C108: 1 | D108: =IF(C108=1,SUM(C$3:C108),"") -> 75 | F108: 106 | G108: 171 | H108: « | K108: 106 | L108: j | M108: 1 | N108: =IF(M108=1,SUM(M$3:M108),"") -> 53 | P108: 106 | Q108: -
A109: 107 | B109: k | C109: 1 | D109: =IF(C109=1,SUM(C$3:C109),"") -> 76 | F109: 107 | G109: 172 | H109: ¬ | K109: 107 | L109: k | M109: 1 | N109: =IF(M109=1,SUM(M$3:M109),"") -> 54 | P109: 107 | Q109: -
A110: 108 | B110: l | C110: 1 | D110: =IF(C110=1,SUM(C$3:C110),"") -> 77 | F110: 108 | G110: 174 | H110: ® | K110: 108 | L110: l | M110: 1 | N110: =IF(M110=1,SUM(M$3:M110),"") -> 55 | P110: 108 | Q110: -
A111: 109 | B111: m | C111: 1 | D111: =IF(C111=1,SUM(C$3:C111),"") -> 78 | F111: 109 | G111: 175 | H111: ¯ | K111: 109 | L111: m | M111: 1 | N111: =IF(M111=1,SUM(M$3:M111),"") -> 56 | P111: 109 | Q111: -
A112: 110 | B112: n | C112: 1 | D112: =IF(C112=1,SUM(C$3:C112),"") -> 79 | F112: 110 | G112: 176 | H112: ° | K112: 110 | L112: n | M112: 1 | N112: =IF(M112=1,SUM(M$3:M112),"") -> 57 | P112: 110 | Q112: -
A113: 111 | B113: o | C113: 1 | D113: =IF(C113=1,SUM(C$3:C113),"") -> 80 | F113: 111 | G113: 177 | H113: ± | K113: 111 | L113: o | M113: 1 | N113: =IF(M113=1,SUM(M$3:M113),"") -> 58 | P113: 111 | Q113: -
A114: 112 | B114: p | C114: 1 | D114: =IF(C114=1,SUM(C$3:C114),"") -> 81 | F114: 112 | G114: 178 | H114: ² | K114: 112 | L114: p | M114: 1 | N114: =IF(M114=1,SUM(M$3:M114),"") -> 59 | P114: 112 | Q114: -
A115: 113 | B115: q | C115: 1 | D115: =IF(C115=1,SUM(C$3:C115),"") -> 82 | F115: 113 | G115: 179 | H115: ³ | K115: 113 | L115: q | M115: 1 | N115: =IF(M115=1,SUM(M$3:M115),"") -> 60 | P115: 113 | Q115: -
A116: 114 | B116: r | C116: 1 | D116: =IF(C116=1,SUM(C$3:C116),"") -> 83 | F116: 114 | G116: 180 | H116: ´ | K116: 114 | L116: r | M116: 1 | N116: =IF(M116=1,SUM(M$3:M116),"") -> 61 | P116: 114 | Q116: -
A117: 115 | B117: s | C117: 1 | D117: =IF(C117=1,SUM(C$3:C117),"") -> 84 | F117: 115 | G117: 181 | H117: µ | K117: 115 | L117: s | M117: 1 | N117: =IF(M117=1,SUM(M$3:M117),"") -> 62 | P117: 115 | Q117: -
A118: 116 | B118: t | C118: 1 | D118: =IF(C118=1,SUM(C$3:C118),"") -> 85 | F118: 116 | G118: 182 | H118: ¶ | K118: 116 | L118: t | M118: 1 | N118: =IF(M118=1,SUM(M$3:M118),"") -> 63 | P118: 116 | Q118: -
A119: 117 | B119: u | C119: 1 | D119: =IF(C119=1,SUM(C$3:C119),"") -> 86 | F119: 117 | G119: 183 | H119: · | K119: 117 | L119: u | M119: 1 | N119: =IF(M119=1,SUM(M$3:M119),"") -> 64 | P119: 117 | Q119: -
A120: 118 | B120: v | C120: 1 | D120: =IF(C120=1,SUM(C$3:C120),"") -> 87 | F120: 118 | G120: 184 | H120: ¸ | K120: 118 | L120: v | M120: 1 | N120: =IF(M120=1,SUM(M$3:M120),"") -> 65 | P120: 118 | Q120: -
A121: 119 | B121: w | C121: 1 | D121: =IF(C121=1,SUM(C$3:C121),"") -> 88 | F121: 119 | G121: 185 | H121: ¹ | K121: 119 | L121: w | M121: 1 | N121: =IF(M121=1,SUM(M$3:M121),"") -> 66 | P121: 119 | Q121: -
A122: 120 | B122: x | C122: 1 | D122: =IF(C122=1,SUM(C$3:C122),"") -> 89 | F122: 120 | G122: 186 | H122: º | K122: 120 | L122: x | M122: 1 | N122: =IF(M122=1,SUM(M$3:M122),"") -> 67 | P122: 120 | Q122: -
A123: 121 | B123: y | C123: 1 | D123: =IF(C123=1,SUM(C$3:C123),"") -> 90 | F123: 121 | G123: 187 | H123: » | K123: 121 | L123: y | M123: 1 | N123: =IF(M123=1,SUM(M$3:M123),"") -> 68 | P123: 121 | Q123: -
A124: 122 | B124: z | C124: 1 | D124: =IF(C124=1,SUM(C$3:C124),"") -> 91 | F124: 122 | G124: 188 | H124: ¼ | K124: 122 | L124: z | M124: 1 | N124: =IF(M124=1,SUM(M$3:M124),"") -> 69 | P124: 122 | Q124: -
A125: 123 | B125: { | C125: 1 | D125: =IF(C125=1,SUM(C$3:C125),"") -> 92 | F125: 123 | G125: 189 | H125: ½ | K125: 123 | L125: { | M125: 0 | N125: =IF(M125=1,SUM(M$3:M125),"") ->  | P125: 123 | Q125: -
A126: 124 | B126: | | C126: 1 | D126: =IF(C126=1,SUM(C$3:C126),"") -> 93 | F126: 124 | G126: 190 | H126: ¾ | K126: 124 | L126: | | M126: 0 | N126: =IF(M126=1,SUM(M$3:M126),"") ->  | P126: 124 | Q126: -
A127: 125 | B127: } | C127: 1 | D127: =IF(C127=1,SUM(C$3:C127),"") -> 94 | F127: 125 | G127: 191 | H127: ¿ | K127: 125 | L127: } | M127: 0 | N127: =IF(M127=1,SUM(M$3:M127),"") ->  | P127: 125 | Q127: -
A128: 126 | B128: ~ | C128: 1 | D128: =IF(C128=1,SUM(C$3:C128),"") -> 95 | F128: 126 | G128: 192 | H128: À | K128: 126 | L128: ~ | M128: 0 | N128: =IF(M128=1,SUM(M$3:M128),"") ->  | P128: 126 | Q128: -
A129: 127 | B129:  | C129: 0 | D129: =IF(C129=1,SUM(C$3:C129),"") ->  | F129: 127 | G129: 193 | H129: Á | K129: 127 | L129:  | M129: 0 | N129: =IF(M129=1,SUM(M$3:M129),"") ->  | P129: 127 | Q129: -
A130: 128 | B130: € | C130: 0 | D130: =IF(C130=1,SUM(C$3:C130),"") ->  | F130: 128 | G130: 194 | H130: Â | K130: 128 | L130: € | M130: 0 | N130: =IF(M130=1,SUM(M$3:M130),"") ->  | P130: 128 | Q130: -
A131: 129 | B131:  | C131: 0 | D131: =IF(C131=1,SUM(C$3:C131),"") ->  | F131: 129 | G131: =IF(ISERROR(MATCH(F131,D$3:D$257,0)),"-",INDEX(A$3:A$257,MATCH(F131,D$3:D$257,0))) -> 195 | H131: =IF(G131<>"-",CHAR(G131),"") -> Ã | K131: 129 | L131:  | M131: 1 | N131: =IF(M131=1,SUM(M$3:M131),"") -> 70 | P131: 129 | Q131: =IF(ISERROR(MATCH(P131,N$3:N$257,0)),"-",INDEX(K$3:K$257,MATCH(P131,N$3:N$257,0))) -> - | R131: =IF(Q131<>"-",CHAR(Q131),"") -> 
A132: 130 | B132: =CHAR(A132) -> ‚ | C132: 0 | D132: =IF(C132=1,SUM(C$3:C132),"") ->  | F132: 130 | G132: 196 | H132: Ä | K132: 130 | L132: =CHAR(K132) -> ‚ | M132: 0 | N132: =IF(M132=1,SUM(M$3:M132),"") ->  | P132: 130 | Q132: -
A133: =A132+1 -> 131 | B133: ƒ | C133: 0 | D133: =IF(C133=1,SUM(C$3:C133),"") ->  | F133: =F132+1 -> 131 | G133: 197 | H133: Å | K133: =K132+1 -> 131 | L133: ƒ | M133: 0 | N133: =IF(M133=1,SUM(M$3:M133),"") ->  | P133: =P132+1 -> 131 | Q133: -
A134: 132 | B134: „ | C134: 0 | D134: =IF(C134=1,SUM(C$3:C134),"") ->  | F134: 132 | G134: 198 | H134: Æ | K134: 132 | L134: „ | M134: 0 | N134: =IF(M134=1,SUM(M$3:M134),"") ->  | P134: 132 | Q134: -
A135: 133 | B135: … | C135: 0 | D135: =IF(C135=1,SUM(C$3:C135),"") ->  | F135: 133 | G135: 199 | H135: Ç | K135: 133 | L135: … | M135: 0 | N135: =IF(M135=1,SUM(M$3:M135),"") ->  | P135: 133 | Q135: -
A136: 134 | B136: † | C136: 0 | D136: =IF(C136=1,SUM(C$3:C136),"") ->  | F136: 134 | G136: 200 | H136: È | K136: 134 | L136: † | M136: 0 | N136: =IF(M136=1,SUM(M$3:M136),"") ->  | P136: 134 | Q136: -
A137: 135 | B137: ‡ | C137: 0 | D137: =IF(C137=1,SUM(C$3:C137),"") ->  | F137: 135 | G137: 201 | H137: É | K137: 135 | L137: ‡ | M137: 0 | N137: =IF(M137=1,SUM(M$3:M137),"") ->  | P137: 135 | Q137: -
A138: 136 | B138: ˆ | C138: 0 | D138: =IF(C138=1,SUM(C$3:C138),"") ->  | F138: 136 | G138: 202 | H138: Ê | K138: 136 | L138: ˆ | M138: 0 | N138: =IF(M138=1,SUM(M$3:M138),"") ->  | P138: 136 | Q138: -
A139: 137 | B139: ‰ | C139: 0 | D139: =IF(C139=1,SUM(C$3:C139),"") ->  | F139: 137 | G139: 203 | H139: Ë | K139: 137 | L139: ‰ | M139: 0 | N139: =IF(M139=1,SUM(M$3:M139),"") ->  | P139: 137 | Q139: -
A140: 138 | B140: Š | C140: 0 | D140: =IF(C140=1,SUM(C$3:C140),"") ->  | F140: 138 | G140: 204 | H140: Ì | K140: 138 | L140: Š | M140: 0 | N140: =IF(M140=1,SUM(M$3:M140),"") ->  | P140: 138 | Q140: -
A141: 139 | B141: ‹ | C141: 0 | D141: =IF(C141=1,SUM(C$3:C141),"") ->  | F141: 139 | G141: 205 | H141: Í | K141: 139 | L141: ‹ | M141: 0 | N141: =IF(M141=1,SUM(M$3:M141),"") ->  | P141: 139 | Q141: -
A142: 140 | B142: Œ | C142: 0 | D142: =IF(C142=1,SUM(C$3:C142),"") ->  | F142: 140 | G142: 206 | H142: Î | K142: 140 | L142: Œ | M142: 0 | N142: =IF(M142=1,SUM(M$3:M142),"") ->  | P142: 140 | Q142: -
A143: 141 | B143:  | C143: 0 | D143: =IF(C143=1,SUM(C$3:C143),"") ->  | F143: 141 | G143: 207 | H143: Ï | K143: 141 | L143:  | M143: 0 | N143: =IF(M143=1,SUM(M$3:M143),"") ->  | P143: 141 | Q143: -
A144: 142 | B144: Ž | C144: 0 | D144: =IF(C144=1,SUM(C$3:C144),"") ->  | F144: 142 | G144: 208 | H144: Ð | K144: 142 | L144: Ž | M144: 0 | N144: =IF(M144=1,SUM(M$3:M144),"") ->  | P144: 142 | Q144: -
A145: 143 | B145:  | C145: 0 | D145: =IF(C145=1,SUM(C$3:C145),"") ->  | F145: 143 | G145: 209 | H145: Ñ | K145: 143 | L145:  | M145: 0 | N145: =IF(M145=1,SUM(M$3:M145),"") ->  | P145: 143 | Q145: -
A146: 144 | B146:  | C146: 0 | D146: =IF(C146=1,SUM(C$3:C146),"") ->  | F146: 144 | G146: 210 | H146: Ò | K146: 144 | L146:  | M146: 0 | N146: =IF(M146=1,SUM(M$3:M146),"") ->  | P146: 144 | Q146: -
A147: 145 | B147: ‘ | C147: 0 | D147: =IF(C147=1,SUM(C$3:C147),"") ->  | F147: 145 | G147: 211 | H147: Ó | K147: 145 | L147: ‘ | M147: 0 | N147: =IF(M147=1,SUM(M$3:M147),"") ->  | P147: 145 | Q147: -
A148: 146 | B148: ’ | C148: 0 | D148: =IF(C148=1,SUM(C$3:C148),"") ->  | F148: 146 | G148: 212 | H148: Ô | K148: 146 | L148: ’ | M148: 0 | N148: =IF(M148=1,SUM(M$3:M148),"") ->  | P148: 146 | Q148: -
A149: 147 | B149: “ | C149: 0 | D149: =IF(C149=1,SUM(C$3:C149),"") ->  | F149: 147 | G149: 213 | H149: Õ | K149: 147 | L149: “ | M149: 0 | N149: =IF(M149=1,SUM(M$3:M149),"") ->  | P149: 147 | Q149: -
A150: 148 | B150: ” | C150: 0 | D150: =IF(C150=1,SUM(C$3:C150),"") ->  | F150: 148 | G150: 214 | H150: Ö | K150: 148 | L150: ” | M150: 0 | N150: =IF(M150=1,SUM(M$3:M150),"") ->  | P150: 148 | Q150: -
A151: 149 | B151: • | C151: 0 | D151: =IF(C151=1,SUM(C$3:C151),"") ->  | F151: 149 | G151: 215 | H151: × | K151: 149 | L151: • | M151: 0 | N151: =IF(M151=1,SUM(M$3:M151),"") ->  | P151: 149 | Q151: -
A152: 150 | B152: – | C152: 0 | D152: =IF(C152=1,SUM(C$3:C152),"") ->  | F152: 150 | G152: 216 | H152: Ø | K152: 150 | L152: – | M152: 0 | N152: =IF(M152=1,SUM(M$3:M152),"") ->  | P152: 150 | Q152: -
A153: 151 | B153: — | C153: 0 | D153: =IF(C153=1,SUM(C$3:C153),"") ->  | F153: 151 | G153: 217 | H153: Ù | K153: 151 | L153: — | M153: 0 | N153: =IF(M153=1,SUM(M$3:M153),"") ->  | P153: 151 | Q153: -
A154: 152 | B154: ˜ | C154: 0 | D154: =IF(C154=1,SUM(C$3:C154),"") ->  | F154: 152 | G154: 218 | H154: Ú | K154: 152 | L154: ˜ | M154: 0 | N154: =IF(M154=1,SUM(M$3:M154),"") ->  | P154: 152 | Q154: -
A155: 153 | B155: ™ | C155: 0 | D155: =IF(C155=1,SUM(C$3:C155),"") ->  | F155: 153 | G155: 219 | H155: Û | K155: 153 | L155: ™ | M155: 0 | N155: =IF(M155=1,SUM(M$3:M155),"") ->  | P155: 153 | Q155: -
A156: 154 | B156: š | C156: 0 | D156: =IF(C156=1,SUM(C$3:C156),"") ->  | F156: 154 | G156: 220 | H156: Ü | K156: 154 | L156: š | M156: 0 | N156: =IF(M156=1,SUM(M$3:M156),"") ->  | P156: 154 | Q156: -
A157: 155 | B157: › | C157: 0 | D157: =IF(C157=1,SUM(C$3:C157),"") ->  | F157: 155 | G157: 221 | H157: Ý | K157: 155 | L157: › | M157: 0 | N157: =IF(M157=1,SUM(M$3:M157),"") ->  | P157: 155 | Q157: -
A158: 156 | B158: œ | C158: 0 | D158: =IF(C158=1,SUM(C$3:C158),"") ->  | F158: 156 | G158: 222 | H158: Þ | K158: 156 | L158: œ | M158: 0 | N158: =IF(M158=1,SUM(M$3:M158),"") ->  | P158: 156 | Q158: -
A159: 157 | B159:  | C159: 0 | D159: =IF(C159=1,SUM(C$3:C159),"") ->  | F159: 157 | G159: 223 | H159: ß | K159: 157 | L159:  | M159: 0 | N159: =IF(M159=1,SUM(M$3:M159),"") ->  | P159: 157 | Q159: -
A160: 158 | B160: ž | C160: 0 | D160: =IF(C160=1,SUM(C$3:C160),"") ->  | F160: 158 | G160: 224 | H160: à | K160: 158 | L160: ž | M160: 0 | N160: =IF(M160=1,SUM(M$3:M160),"") ->  | P160: 158 | Q160: -
A161: 159 | B161: Ÿ | C161: 0 | D161: =IF(C161=1,SUM(C$3:C161),"") ->  | F161: 159 | G161: 225 | H161: á | K161: 159 | L161: Ÿ | M161: 0 | N161: =IF(M161=1,SUM(M$3:M161),"") ->  | P161: 159 | Q161: -
A162: 160 | C162: 0 | D162: =IF(C162=1,SUM(C$3:C162),"") ->  | F162: 160 | G162: 226 | H162: â | K162: 160 | M162: 0 | N162: =IF(M162=1,SUM(M$3:M162),"") ->  | P162: 160 | Q162: -
A163: 161 | B163: ¡ | C163: 1 | D163: =IF(C163=1,SUM(C$3:C163),"") -> 96 | F163: 161 | G163: 227 | H163: ã | K163: 161 | L163: ¡ | M163: 0 | N163: =IF(M163=1,SUM(M$3:M163),"") ->  | P163: 161 | Q163: -
A164: 162 | B164: ¢ | C164: 1 | D164: =IF(C164=1,SUM(C$3:C164),"") -> 97 | F164: 162 | G164: 228 | H164: ä | K164: 162 | L164: ¢ | M164: 0 | N164: =IF(M164=1,SUM(M$3:M164),"") ->  | P164: 162 | Q164: -
A165: 163 | B165: £ | C165: 1 | D165: =IF(C165=1,SUM(C$3:C165),"") -> 98 | F165: 163 | G165: 229 | H165: å | K165: 163 | L165: £ | M165: 0 | N165: =IF(M165=1,SUM(M$3:M165),"") ->  | P165: 163 | Q165: -
A166: 164 | B166: ¤ | C166: 1 | D166: =IF(C166=1,SUM(C$3:C166),"") -> 99 | F166: 164 | G166: 230 | H166: æ | K166: 164 | L166: ¤ | M166: 0 | N166: =IF(M166=1,SUM(M$3:M166),"") ->  | P166: 164 | Q166: -
A167: 165 | B167: ¥ | C167: 1 | D167: =IF(C167=1,SUM(C$3:C167),"") -> 100 | F167: 165 | G167: 231 | H167: ç | K167: 165 | L167: ¥ | M167: 0 | N167: =IF(M167=1,SUM(M$3:M167),"") ->  | P167: 165 | Q167: -
A168: 166 | B168: ¦ | C168: 1 | D168: =IF(C168=1,SUM(C$3:C168),"") -> 101 | F168: 166 | G168: 232 | H168: è | K168: 166 | L168: ¦ | M168: 0 | N168: =IF(M168=1,SUM(M$3:M168),"") ->  | P168: 166 | Q168: -
A169: 167 | B169: § | C169: 1 | D169: =IF(C169=1,SUM(C$3:C169),"") -> 102 | F169: 167 | G169: 233 | H169: é | K169: 167 | L169: § | M169: 0 | N169: =IF(M169=1,SUM(M$3:M169),"") ->  | P169: 167 | Q169: -
A170: 168 | B170: ¨ | C170: 1 | D170: =IF(C170=1,SUM(C$3:C170),"") -> 103 | F170: 168 | G170: 234 | H170: ê | K170: 168 | L170: ¨ | M170: 0 | N170: =IF(M170=1,SUM(M$3:M170),"") ->  | P170: 168 | Q170: -
A171: 169 | B171: © | C171: 1 | D171: =IF(C171=1,SUM(C$3:C171),"") -> 104 | F171: 169 | G171: 235 | H171: ë | K171: 169 | L171: © | M171: 0 | N171: =IF(M171=1,SUM(M$3:M171),"") ->  | P171: 169 | Q171: -
A172: 170 | B172: ª | C172: 1 | D172: =IF(C172=1,SUM(C$3:C172),"") -> 105 | F172: 170 | G172: 236 | H172: ì | K172: 170 | L172: ª | M172: 0 | N172: =IF(M172=1,SUM(M$3:M172),"") ->  | P172: 170 | Q172: -
A173: 171 | B173: « | C173: 1 | D173: =IF(C173=1,SUM(C$3:C173),"") -> 106 | F173: 171 | G173: 237 | H173: í | K173: 171 | L173: « | M173: 0 | N173: =IF(M173=1,SUM(M$3:M173),"") ->  | P173: 171 | Q173: -
A174: 172 | B174: ¬ | C174: 1 | D174: =IF(C174=1,SUM(C$3:C174),"") -> 107 | F174: 172 | G174: 238 | H174: î | K174: 172 | L174: ¬ | M174: 0 | N174: =IF(M174=1,SUM(M$3:M174),"") ->  | P174: 172 | Q174: -
A175: 173 | B175: ­ | C175: 0 | D175: =IF(C175=1,SUM(C$3:C175),"") ->  | F175: 173 | G175: 239 | H175: ï | K175: 173 | L175: ­ | M175: 0 | N175: =IF(M175=1,SUM(M$3:M175),"") ->  | P175: 173 | Q175: -
A176: 174 | B176: ® | C176: 1 | D176: =IF(C176=1,SUM(C$3:C176),"") -> 108 | F176: 174 | G176: 240 | H176: ð | K176: 174 | L176: ® | M176: 0 | N176: =IF(M176=1,SUM(M$3:M176),"") ->  | P176: 174 | Q176: -
A177: 175 | B177: ¯ | C177: 1 | D177: =IF(C177=1,SUM(C$3:C177),"") -> 109 | F177: 175 | G177: 241 | H177: ñ | K177: 175 | L177: ¯ | M177: 0 | N177: =IF(M177=1,SUM(M$3:M177),"") ->  | P177: 175 | Q177: -
A178: 176 | B178: ° | C178: 1 | D178: =IF(C178=1,SUM(C$3:C178),"") -> 110 | F178: 176 | G178: 242 | H178: ò | K178: 176 | L178: ° | M178: 0 | N178: =IF(M178=1,SUM(M$3:M178),"") ->  | P178: 176 | Q178: -
A179: 177 | B179: ± | C179: 1 | D179: =IF(C179=1,SUM(C$3:C179),"") -> 111 | F179: 177 | G179: 243 | H179: ó | K179: 177 | L179: ± | M179: 0 | N179: =IF(M179=1,SUM(M$3:M179),"") ->  | P179: 177 | Q179: -
A180: 178 | B180: ² | C180: 1 | D180: =IF(C180=1,SUM(C$3:C180),"") -> 112 | F180: 178 | G180: 244 | H180: ô | K180: 178 | L180: ² | M180: 0 | N180: =IF(M180=1,SUM(M$3:M180),"") ->  | P180: 178 | Q180: -
A181: 179 | B181: ³ | C181: 1 | D181: =IF(C181=1,SUM(C$3:C181),"") -> 113 | F181: 179 | G181: 245 | H181: õ | K181: 179 | L181: ³ | M181: 0 | N181: =IF(M181=1,SUM(M$3:M181),"") ->  | P181: 179 | Q181: -
A182: 180 | B182: ´ | C182: 1 | D182: =IF(C182=1,SUM(C$3:C182),"") -> 114 | F182: 180 | G182: 246 | H182: ö | K182: 180 | L182: ´ | M182: 0 | N182: =IF(M182=1,SUM(M$3:M182),"") ->  | P182: 180 | Q182: -
A183: 181 | B183: µ | C183: 1 | D183: =IF(C183=1,SUM(C$3:C183),"") -> 115 | F183: 181 | G183: 247 | H183: ÷ | K183: 181 | L183: µ | M183: 0 | N183: =IF(M183=1,SUM(M$3:M183),"") ->  | P183: 181 | Q183: -
A184: 182 | B184: ¶ | C184: 1 | D184: =IF(C184=1,SUM(C$3:C184),"") -> 116 | F184: 182 | G184: 248 | H184: ø | K184: 182 | L184: ¶ | M184: 0 | N184: =IF(M184=1,SUM(M$3:M184),"") ->  | P184: 182 | Q184: -
A185: 183 | B185: · | C185: 1 | D185: =IF(C185=1,SUM(C$3:C185),"") -> 117 | F185: 183 | G185: 249 | H185: ù | K185: 183 | L185: · | M185: 0 | N185: =IF(M185=1,SUM(M$3:M185),"") ->  | P185: 183 | Q185: -
A186: 184 | B186: ¸ | C186: 1 | D186: =IF(C186=1,SUM(C$3:C186),"") -> 118 | F186: 184 | G186: 250 | H186: ú | K186: 184 | L186: ¸ | M186: 0 | N186: =IF(M186=1,SUM(M$3:M186),"") ->  | P186: 184 | Q186: -
A187: 185 | B187: ¹ | C187: 1 | D187: =IF(C187=1,SUM(C$3:C187),"") -> 119 | F187: 185 | G187: 251 | H187: û | K187: 185 | L187: ¹ | M187: 0 | N187: =IF(M187=1,SUM(M$3:M187),"") ->  | P187: 185 | Q187: -
A188: 186 | B188: º | C188: 1 | D188: =IF(C188=1,SUM(C$3:C188),"") -> 120 | F188: 186 | G188: 252 | H188: ü | K188: 186 | L188: º | M188: 0 | N188: =IF(M188=1,SUM(M$3:M188),"") ->  | P188: 186 | Q188: -
A189: 187 | B189: » | C189: 1 | D189: =IF(C189=1,SUM(C$3:C189),"") -> 121 | F189: 187 | G189: 253 | H189: ý | K189: 187 | L189: » | M189: 0 | N189: =IF(M189=1,SUM(M$3:M189),"") ->  | P189: 187 | Q189: -
A190: 188 | B190: ¼ | C190: 1 | D190: =IF(C190=1,SUM(C$3:C190),"") -> 122 | F190: 188 | G190: 254 | H190: þ | K190: 188 | L190: ¼ | M190: 0 | N190: =IF(M190=1,SUM(M$3:M190),"") ->  | P190: 188 | Q190: -
A191: 189 | B191: ½ | C191: 1 | D191: =IF(C191=1,SUM(C$3:C191),"") -> 123 | F191: 189 | G191: 255 | H191: ÿ | K191: 189 | L191: ½ | M191: 0 | N191: =IF(M191=1,SUM(M$3:M191),"") ->  | P191: 189 | Q191: -
A192: 190 | B192: ¾ | C192: 1 | D192: =IF(C192=1,SUM(C$3:C192),"") -> 124 | F192: 190 | G192: - | K192: 190 | L192: ¾ | M192: 0 | N192: =IF(M192=1,SUM(M$3:M192),"") ->  | P192: 190 | Q192: -
A193: 191 | B193: ¿ | C193: 1 | D193: =IF(C193=1,SUM(C$3:C193),"") -> 125 | F193: 191 | G193: - | K193: 191 | L193: ¿ | M193: 0 | N193: =IF(M193=1,SUM(M$3:M193),"") ->  | P193: 191 | Q193: -
A194: 192 | B194: À | C194: 1 | D194: =IF(C194=1,SUM(C$3:C194),"") -> 126 | F194: 192 | G194: - | K194: 192 | L194: À | M194: 0 | N194: =IF(M194=1,SUM(M$3:M194),"") ->  | P194: 192 | Q194: -
A195: 193 | B195: Á | C195: 1 | D195: =IF(C195=1,SUM(C$3:C195),"") -> 127 | F195: 193 | G195: =IF(ISERROR(MATCH(F195,D$3:D$257,0)),"-",INDEX(A$3:A$257,MATCH(F195,D$3:D$257,0))) -> - | H195: =IF(G195<>"-",CHAR(G195),"") ->  | K195: 193 | L195: Á | M195: 0 | N195: =IF(M195=1,SUM(M$3:M195),"") ->  | P195: 193 | Q195: =IF(ISERROR(MATCH(P195,N$3:N$257,0)),"-",INDEX(K$3:K$257,MATCH(P195,N$3:N$257,0))) -> - | R195: =IF(Q195<>"-",CHAR(Q195),"") -> 
A196: 194 | B196: =CHAR(A196) -> Â | C196: 1 | D196: =IF(C196=1,SUM(C$3:C196),"") -> 128 | F196: 194 | G196: - | K196: 194 | L196: =CHAR(K196) -> Â | M196: 0 | N196: =IF(M196=1,SUM(M$3:M196),"") ->  | P196: 194 | Q196: -
A197: =A196+1 -> 195 | B197: Ã | C197: 1 | D197: =IF(C197=1,SUM(C$3:C197),"") -> 129 | F197: =F196+1 -> 195 | G197: - | K197: =K196+1 -> 195 | L197: Ã | M197: 0 | N197: =IF(M197=1,SUM(M$3:M197),"") ->  | P197: =P196+1 -> 195 | Q197: -
A198: 196 | B198: Ä | C198: 1 | D198: =IF(C198=1,SUM(C$3:C198),"") -> 130 | F198: 196 | G198: - | K198: 196 | L198: Ä | M198: 0 | N198: =IF(M198=1,SUM(M$3:M198),"") ->  | P198: 196 | Q198: -
A199: 197 | B199: Å | C199: 1 | D199: =IF(C199=1,SUM(C$3:C199),"") -> 131 | F199: 197 | G199: - | K199: 197 | L199: Å | M199: 0 | N199: =IF(M199=1,SUM(M$3:M199),"") ->  | P199: 197 | Q199: -
A200: 198 | B200: Æ | C200: 1 | D200: =IF(C200=1,SUM(C$3:C200),"") -> 132 | F200: 198 | G200: - | K200: 198 | L200: Æ | M200: 0 | N200: =IF(M200=1,SUM(M$3:M200),"") ->  | P200: 198 | Q200: -
... 57 more rows
